BODY,BODY NAME,DATE,TRANSACTION NUMBER,THEIR REF,CATEGORY,AMOUNT,SUPPLIER NAME,SUPPLIER CODE,EXPENSE AREA,EXPENSE TYPE,EXPENSE CODE
http://statistics.data.gov.uk/id/local-authority/12UE,Huntingdonshire District Council,15/12/2016,200677,26034553,5,-789.2,Archant Community Media Ltd,CR452143,Dc Application Processing,Advertising - Statutory Notice,257
http://statistics.data.gov.uk/id/local-authority/12UE,Huntingdonshire District Council,15/12/2016,201113,26034658,5,-789.2,Archant Community Media Ltd,CR452143,Dc Application Processing,Advertising - Statutory Notice,257
http://statistics.data.gov.uk/id/local-authority/12UE,Huntingdonshire District Council,15/12/2016,200675,82635398,5,953.79,Archant Community Media Ltd,CR452143,Dc Application Processing,Advertising - Statutory Notice,257
http://statistics.data.gov.uk/id/local-authority/12UE,Huntingdonshire District Council,15/12/2016,201112,82640017,5,935.5,Archant Community Media Ltd,CR452143,Dc Application Processing,Advertising - Statutory Notice,257
http://statistics.data.gov.uk/id/local-authority/12UE,Huntingdonshire District Council,08/12/2016,199917,82632559,5,570.02,Archant Herts And Cambs,CR403271,Domestic Refuse,Advertising/Promoting Services,255
http://statistics.data.gov.uk/id/local-authority/12UE,Huntingdonshire District Council,08/12/2016,199917,82632559,5,570.02,Archant Herts And Cambs,CR403271,Grounds Maintenance,Advertising/Promoting Services,255
http://statistics.data.gov.uk/id/local-authority/12UE,Huntingdonshire District Council,08/12/2016,199917,82632559,5,570.02,Archant Herts And Cambs,CR403271,Grounds Maintenance,Advertising/Promoting Services,255
http://statistics.data.gov.uk/id/local-authority/12UE,Huntingdonshire District Council,01/12/2016,200019,16872,5,330,Bigprinting,CR416383,One Leisure Corporate Mgt,Advertising/Promoting Services,255
http://statistics.data.gov.uk/id/local-authority/12UE,Huntingdonshire District Council,21/12/2016,200908,61239664,5,360,Local World Ltd,CR000072,One Leisure Corporate Mgt,Advertising/Promoting Services,255
http://statistics.data.gov.uk/id/local-authority/12UE,Huntingdonshire District Council,21/12/2016,201741,INV-5488,5,787.5,Cfb Limited,CR480886,One Leisure Huntingdon,Advertising/Promoting Services,255
http://statistics.data.gov.uk/id/local-authority/12UE,Huntingdonshire District Council,21/12/2016,201741,INV-5488,5,393.74,Cfb Limited,CR480886,One Leisure Ramsey,Advertising/Promoting Services,255
http://statistics.data.gov.uk/id/local-authority/12UE,Huntingdonshire District Council,21/12/2016,201741,INV-5488,5,393.76,Cfb Limited,CR480886,One Leisure Sawtry,Advertising/Promoting Services,255
http://statistics.data.gov.uk/id/local-authority/12UE,Huntingdonshire District Council,15/12/2016,200340,82635273,5,493.46,Archant Community Media Ltd,CR452143,One Leisure St Ives,Advertising/Promoting Services,255
http://statistics.data.gov.uk/id/local-authority/12UE,Huntingdonshire District Council,21/12/2016,201741,INV-5488,5,787.5,Cfb Limited,CR480886,One Leisure St Ives,Advertising/Promoting Services,255
http://statistics.data.gov.uk/id/local-authority/12UE,Huntingdonshire District Council,08/12/2016,200646,5413,5,408,Symmetry Dpm Ltd,CR453960,One Leisure St Ives,Advertising/Promoting Services,255
http://statistics.data.gov.uk/id/local-authority/12UE,Huntingdonshire District Council,08/12/2016,200645,5438,5,444,Symmetry Dpm Ltd,CR453960,One Leisure St Ives,Advertising/Promoting Services,255
http://statistics.data.gov.uk/id/local-authority/12UE,Huntingdonshire District Council,01/12/2016,199184,14,5,"1,620.00",The 360 View,CR424072,One Leisure St Ives,Advertising/Promoting Services,255
http://statistics.data.gov.uk/id/local-authority/12UE,Huntingdonshire District Council,21/12/2016,201741,INV-5488,5,787.5,Cfb Limited,CR480886,One Leisure St Neots,Advertising/Promoting Services,255
http://statistics.data.gov.uk/id/local-authority/12UE,Huntingdonshire District Council,08/12/2016,199917,82632559,5,570.02,Archant Herts And Cambs,CR403271,Street Cleaning,Advertising/Promoting Services,255
http://statistics.data.gov.uk/id/local-authority/12UE,Huntingdonshire District Council,01/12/2016,199545,172099,5,52.5,Franklins Group,CR478928,One Leisure Huntingdon,Badges And Certificates,571
http://statistics.data.gov.uk/id/local-authority/12UE,Huntingdonshire District Council,01/12/2016,199545,172099,5,332.7,Franklins Group,CR478928,One Leisure Sawtry,Badges And Certificates,571
http://statistics.data.gov.uk/id/local-authority/12UE,Huntingdonshire District Council,01/12/2016,199545,172099,5,102,Franklins Group,CR478928,One Leisure St Ives,Badges And Certificates,571
http://statistics.data.gov.uk/id/local-authority/12UE,Huntingdonshire District Council,01/12/2016,199545,172099,5,151.5,Franklins Group,CR478928,One Leisure St Neots,Badges And Certificates,571
http://statistics.data.gov.uk/id/local-authority/12UE,Huntingdonshire District Council,01/12/2016,199252,B311016,5,"2,694.89",Jacobs,CR422350,Council Tax,Bailiffs,703
http://statistics.data.gov.uk/id/local-authority/12UE,Huntingdonshire District Council,21/12/2016,201056,4158,5,"5,155.65",Newlyn Plc,CR409114,Council Tax,Bailiffs,703
http://statistics.data.gov.uk/id/local-authority/12UE,Huntingdonshire District Council,01/12/2016,199253,BN311016,5,418.46,Jacobs,CR422350,N N D R Administration,Bailiffs,703
http://statistics.data.gov.uk/id/local-authority/12UE,Huntingdonshire District Council,21/12/2016,200233,638769,5,387.67,Lacons,CR422174,One Leisure Huntingdon,Bar Provisions,558
http://statistics.data.gov.uk/id/local-authority/12UE,Huntingdonshire District Council,01/12/2016,199458,74472,5,154.52,Snackline Direct Ltd,CR478090,One Leisure Huntingdon,Bar Provisions,558
http://statistics.data.gov.uk/id/local-authority/12UE,Huntingdonshire District Council,08/12/2016,199662,2102826532,5,284.26,Booker Cash And Carry,CR027611,One Leisure St Ives,Bar Provisions,558
http://statistics.data.gov.uk/id/local-authority/12UE,Huntingdonshire District Council,08/12/2016,200718,2102839392,5,191.34,Booker Cash And Carry,CR027611,One Leisure St Ives,Bar Provisions,558
http://statistics.data.gov.uk/id/local-authority/12UE,Huntingdonshire District Council,15/12/2016,200045,2102840760,5,113.41,Booker Cash And Carry,CR027611,One Leisure St Ives,Bar Provisions,558
http://statistics.data.gov.uk/id/local-authority/12UE,Huntingdonshire District Council,21/12/2016,201164,2102852750,5,"1,609.27",Booker Cash And Carry,CR027611,One Leisure St Ives,Bar Provisions,558
http://statistics.data.gov.uk/id/local-authority/12UE,Huntingdonshire District Council,28/12/2016,201472,2102867879,5,"1,247.10",Booker Cash And Carry,CR027611,One Leisure St Ives,Bar Provisions,558
http://statistics.data.gov.uk/id/local-authority/12UE,Huntingdonshire District Council,01/12/2016,198984,636040,5,"1,321.48",Lacons,CR422174,One Leisure St Ives,Bar Provisions,558
http://statistics.data.gov.uk/id/local-authority/12UE,Huntingdonshire District Council,01/12/2016,199086,636264,5,453.77,Lacons,CR422174,One Leisure St Ives,Bar Provisions,558
http://statistics.data.gov.uk/id/local-authority/12UE,Huntingdonshire District Council,15/12/2016,199825,637888,5,787.01,Lacons,CR422174,One Leisure St Ives,Bar Provisions,558
http://statistics.data.gov.uk/id/local-authority/12UE,Huntingdonshire District Council,15/12/2016,199878,638102,5,297.79,Lacons,CR422174,One Leisure St Ives,Bar Provisions,558
http://statistics.data.gov.uk/id/local-authority/12UE,Huntingdonshire District Council,28/12/2016,200603,639891,5,"1,436.11",Lacons,CR422174,One Leisure St Ives,Bar Provisions,558
http://statistics.data.gov.uk/id/local-authority/12UE,Huntingdonshire District Council,01/12/2016,198745,I152407,5,920.45,Oakham Ales,CR422253,One Leisure St Ives,Bar Provisions,558
http://statistics.data.gov.uk/id/local-authority/12UE,Huntingdonshire District Council,15/12/2016,199668,I153287,5,575.9,Oakham Ales,CR422253,One Leisure St Ives,Bar Provisions,558
http://statistics.data.gov.uk/id/local-authority/12UE,Huntingdonshire District Council,28/12/2016,200326,I154186,5,"1,236.67",Oakham Ales,CR422253,One Leisure St Ives,Bar Provisions,558
http://statistics.data.gov.uk/id/local-authority/12UE,Huntingdonshire District Council,08/12/2016,199848,251109,5,4.75,South Lincs Food Service,CR033415,One Leisure St Ives,Bar Provisions,558
http://statistics.data.gov.uk/id/local-authority/12UE,Huntingdonshire District Council,15/12/2016,201168,261288,5,8.35,South Lincs Food Service,CR033415,One Leisure St Ives,Bar Provisions,558
http://statistics.data.gov.uk/id/local-authority/12UE,Huntingdonshire District Council,15/12/2016,199843,285423,5,141.52,Westminster Foodservice,CR455156,One Leisure St Ives,Bar Provisions,558
http://statistics.data.gov.uk/id/local-authority/12UE,Huntingdonshire District Council,21/12/2016,200720,285882,5,63.56,Westminster Foodservice,CR455156,One Leisure St Ives,Bar Provisions,558
http://statistics.data.gov.uk/id/local-authority/12UE,Huntingdonshire District Council,15/12/2016,201140,384/635,,315,Jaz Yorks Ltd,CR160753,Homelessness Management,Bed & Breakfast Payment,818
http://statistics.data.gov.uk/id/local-authority/12UE,Huntingdonshire District Council,08/12/2016,200726,384/637,,315,Jaz Yorks Ltd,CR160753,Homelessness Management,Bed & Breakfast Payment,818
http://statistics.data.gov.uk/id/local-authority/12UE,Huntingdonshire District Council,08/12/2016,200729,384/638,,315,Jaz Yorks Ltd,CR160753,Homelessness Management,Bed & Breakfast Payment,818
http://statistics.data.gov.uk/id/local-authority/12UE,Huntingdonshire District Council,08/12/2016,200725,384/639,,525,Jaz Yorks Ltd,CR160753,Homelessness Management,Bed & Breakfast Payment,818
http://statistics.data.gov.uk/id/local-authority/12UE,Huntingdonshire District Council,08/12/2016,200727,384/640,,315,Jaz Yorks Ltd,CR160753,Homelessness Management,Bed & Breakfast Payment,818
http://statistics.data.gov.uk/id/local-authority/12UE,Huntingdonshire District Council,08/12/2016,200724,384/642,,525,Jaz Yorks Ltd,CR160753,Homelessness Management,Bed & Breakfast Payment,818
http://statistics.data.gov.uk/id/local-authority/12UE,Huntingdonshire District Council,15/12/2016,201149,384/644,,330,Jaz Yorks Ltd,CR160753,Homelessness Management,Bed & Breakfast Payment,818
http://statistics.data.gov.uk/id/local-authority/12UE,Huntingdonshire District Council,15/12/2016,201145,384/645,,525,Jaz Yorks Ltd,CR160753,Homelessness Management,Bed & Breakfast Payment,818
http://statistics.data.gov.uk/id/local-authority/12UE,Huntingdonshire District Council,15/12/2016,201142,384/647,,315,Jaz Yorks Ltd,CR160753,Homelessness Management,Bed & Breakfast Payment,818
http://statistics.data.gov.uk/id/local-authority/12UE,Huntingdonshire District Council,15/12/2016,201139,384/648,,315,Jaz Yorks Ltd,CR160753,Homelessness Management,Bed & Breakfast Payment,818
http://statistics.data.gov.uk/id/local-authority/12UE,Huntingdonshire District Council,15/12/2016,201147,384/649,,385,Jaz Yorks Ltd,CR160753,Homelessness Management,Bed & Breakfast Payment,818
http://statistics.data.gov.uk/id/local-authority/12UE,Huntingdonshire District Council,21/12/2016,201708,384/650,,315,Jaz Yorks Ltd,CR160753,Homelessness Management,Bed & Breakfast Payment,818
http://statistics.data.gov.uk/id/local-authority/12UE,Huntingdonshire District Council,21/12/2016,201707,384/651,,385,Jaz Yorks Ltd,CR160753,Homelessness Management,Bed & Breakfast Payment,818
http://statistics.data.gov.uk/id/local-authority/12UE,Huntingdonshire District Council,21/12/2016,201709,384/652,,315,Jaz Yorks Ltd,CR160753,Homelessness Management,Bed & Breakfast Payment,818
http://statistics.data.gov.uk/id/local-authority/12UE,Huntingdonshire District Council,21/12/2016,201706,384/653,,385,Jaz Yorks Ltd,CR160753,Homelessness Management,Bed & Breakfast Payment,818
http://statistics.data.gov.uk/id/local-authority/12UE,Huntingdonshire District Council,15/12/2016,201150,42/2016,5,"1,190.00",The Station Hotel,CR453752,Homelessness Management,Bed & Breakfast Payment,818
http://statistics.data.gov.uk/id/local-authority/12UE,Huntingdonshire District Council,21/12/2016,201635,43/2016,5,"1,190.00",The Station Hotel,CR453752,Homelessness Management,Bed & Breakfast Payment,818
http://statistics.data.gov.uk/id/local-authority/12UE,Huntingdonshire District Council,01/12/2016,198666,EC045,5,"2,520.00",Ukos Projects Ltd,CR423164,Homelessness Management,Bed & Breakfast Payment,818
http://statistics.data.gov.uk/id/local-authority/12UE,Huntingdonshire District Council,21/12/2016,199884,EC048,5,"2,760.00",Ukos Projects Ltd,CR423164,Homelessness Management,Bed & Breakfast Payment,818
http://statistics.data.gov.uk/id/local-authority/12UE,Huntingdonshire District Council,01/12/2016,200309,EC049,5,"3,000.00",Ukos Projects Ltd,CR423164,Homelessness Management,Bed & Breakfast Payment,818
http://statistics.data.gov.uk/id/local-authority/12UE,Huntingdonshire District Council,08/12/2016,200683,EC050,5,"2,220.00",Ukos Projects Ltd,CR423164,Homelessness Management,Bed & Breakfast Payment,818
http://statistics.data.gov.uk/id/local-authority/12UE,Huntingdonshire District Council,15/12/2016,201153,EC051,5,"2,160.00",Ukos Projects Ltd,CR423164,Homelessness Management,Bed & Breakfast Payment,818
http://statistics.data.gov.uk/id/local-authority/12UE,Huntingdonshire District Council,21/12/2016,201637,EC052,5,"2,400.00",Ukos Projects Ltd,CR423164,Homelessness Management,Bed & Breakfast Payment,818
http://statistics.data.gov.uk/id/local-authority/12UE,Huntingdonshire District Council,28/12/2016,201992,EC053,5,"2,160.00",Ukos Projects Ltd,CR423164,Homelessness Management,Bed & Breakfast Payment,818
http://statistics.data.gov.uk/id/local-authority/12UE,Huntingdonshire District Council,21/12/2016,605871,1335,1,271.38,St Ives Town Council,CR000701,Bus Stations,Building Cleaning,440
http://statistics.data.gov.uk/id/local-authority/12UE,Huntingdonshire District Council,28/12/2016,201544,555675,5,482.99,Ecocleen Services Limited,CR406985,Countryside,Building Cleaning,440
http://statistics.data.gov.uk/id/local-authority/12UE,Huntingdonshire District Council,01/12/2016,199480,INV554516,5,482.99,Ecocleen Services Limited,CR406985,Countryside,Building Cleaning,440
http://statistics.data.gov.uk/id/local-authority/12UE,Huntingdonshire District Council,01/12/2016,199206,554705,5,412.24,Ecocleen Services Limited,CR406985,Off Street Parking,Building Cleaning,440
http://statistics.data.gov.uk/id/local-authority/12UE,Huntingdonshire District Council,28/12/2016,201494,555919,5,412.24,Ecocleen Services Limited,CR406985,Off Street Parking,Building Cleaning,440
http://statistics.data.gov.uk/id/local-authority/12UE,Huntingdonshire District Council,01/12/2016,199202,554704,5,731.68,Ecocleen Services Limited,CR406985,Public Conveniences,Building Cleaning,440
http://statistics.data.gov.uk/id/local-authority/12UE,Huntingdonshire District Council,28/12/2016,201090,555925,5,731.68,Ecocleen Services Limited,CR406985,Public Conveniences,Building Cleaning,440
http://statistics.data.gov.uk/id/local-authority/12UE,Huntingdonshire District Council,28/12/2016,201938,1789,5,696,G Ferrara Ltd,CR478949,Commercial Properties,Building Mtce,303
http://statistics.data.gov.uk/id/local-authority/12UE,Huntingdonshire District Council,21/12/2016,201712,GFL1789HDC,5,696,G Ferrara Ltd,CR478949,Commercial Properties,Building Mtce,303
http://statistics.data.gov.uk/id/local-authority/12UE,Huntingdonshire District Council,28/12/2016,201950,276,5,750,Mcs Electrical,CR424143,Commercial Properties,Building Mtce,303
http://statistics.data.gov.uk/id/local-authority/12UE,Huntingdonshire District Council,21/12/2016,201470,GFL1742HDC,5,372,G Ferrara Ltd,CR478949,Countryside,Building Mtce,303
http://statistics.data.gov.uk/id/local-authority/12UE,Huntingdonshire District Council,21/12/2016,201303,3040,5,351,Watts-Up Ltd,CR480243,Countryside,Building Mtce,303
http://statistics.data.gov.uk/id/local-authority/12UE,Huntingdonshire District Council,28/12/2016,201064,GD539,5,138,Greenday Energy Ltd,CR422398,E F H And Depots,Building Mtce,303
http://statistics.data.gov.uk/id/local-authority/12UE,Huntingdonshire District Council,15/12/2016,199862,3030,5,487.63,K & M Lighting Services Ltd,CR455166,E F H And Depots,Building Mtce,303
http://statistics.data.gov.uk/id/local-authority/12UE,Huntingdonshire District Council,21/12/2016,201710,22140,,428.54,B S Graves Electrical Ltd,CR003146,Industrial Properties,Building Mtce,303
http://statistics.data.gov.uk/id/local-authority/12UE,Huntingdonshire District Council,28/12/2016,200906,6390,5,"2,700.00",Cambridge Flat Roofing,CR479717,Leisure Centres Capital,Building Mtce,303
http://statistics.data.gov.uk/id/local-authority/12UE,Huntingdonshire District Council,28/12/2016,201224,6391,5,"2,610.00",Cambridge Flat Roofing,CR479717,Leisure Centres Capital,Building Mtce,303
http://statistics.data.gov.uk/id/local-authority/12UE,Huntingdonshire District Council,15/12/2016,200618,42542,5,390,Dal-Rod,CR017043,Leisure Centres Capital,Building Mtce,303
http://statistics.data.gov.uk/id/local-authority/12UE,Huntingdonshire District Council,21/12/2016,199877,S3087052,5,"1,580.40",First In Service Ltd,CR422285,Leisure Centres Capital,Building Mtce,303
http://statistics.data.gov.uk/id/local-authority/12UE,Huntingdonshire District Council,21/12/2016,199976,426972,5,"1,654.76",Heasell Electromechanical Services Ltd,CR422407,Leisure Centres Capital,Building Mtce,303
http://statistics.data.gov.uk/id/local-authority/12UE,Huntingdonshire District Council,21/12/2016,200612,7080592441,5,"2,446.42",Honeywell Novar Systems,CR406826,Leisure Centres Capital,Building Mtce,303
http://statistics.data.gov.uk/id/local-authority/12UE,Huntingdonshire District Council,28/12/2016,201227,12,5,280,Richard Sistrom Painting & Decorating,CR422887,Leisure Centres Capital,Building Mtce,303
http://statistics.data.gov.uk/id/local-authority/12UE,Huntingdonshire District Council,08/12/2016,200654,INV0011,5,860,Richard Sistrom Painting & Decorating,CR422887,Leisure Centres Capital,Building Mtce,303
http://statistics.data.gov.uk/id/local-authority/12UE,Huntingdonshire District Council,08/12/2016,200927,BOA27/2016,5,"11,304.00",Vollmer Uk Ltd,CR424044,Leisure Services Capital,Building Mtce,303
http://statistics.data.gov.uk/id/local-authority/12UE,Huntingdonshire District Council,15/12/2016,200611,29022,5,288,Bridge Fibre Limited,CR424041,One Leisure Corporate Mgt,Building Mtce,303
http://statistics.data.gov.uk/id/local-authority/12UE,Huntingdonshire District Council,15/12/2016,200721,46708,5,"4,149.60",Airway Air Conditioning Ltd,CR482347,One Leisure Huntingdon,Building Mtce,303
http://statistics.data.gov.uk/id/local-authority/12UE,Huntingdonshire District Council,21/12/2016,201481,748,5,624,Pool Maintenance Ltd,CR422505,One Leisure Huntingdon,Building Mtce,303
http://statistics.data.gov.uk/id/local-authority/12UE,Huntingdonshire District Council,21/12/2016,201481,748,5,624,Pool Maintenance Ltd,CR422505,One Leisure Ramsey,Building Mtce,303
http://statistics.data.gov.uk/id/local-authority/12UE,Huntingdonshire District Council,21/12/2016,201481,748,5,624,Pool Maintenance Ltd,CR422505,One Leisure Sawtry,Building Mtce,303
http://statistics.data.gov.uk/id/local-authority/12UE,Huntingdonshire District Council,08/12/2016,199516,8,5,299.19,D H Property Maintneance & Landscapes,CR422909,One Leisure St Ives,Building Mtce,303
http://statistics.data.gov.uk/id/local-authority/12UE,Huntingdonshire District Council,21/12/2016,201676,16502195,5,510,Ener-G Combined Power Ltd,CR422879,One Leisure St Ives,Building Mtce,303
http://statistics.data.gov.uk/id/local-authority/12UE,Huntingdonshire District Council,28/12/2016,200912,4271589,1,170.58,Espo,CR006566,One Leisure St Ives,Building Mtce,303
http://statistics.data.gov.uk/id/local-authority/12UE,Huntingdonshire District Council,08/12/2016,199535,S3086672,5,403.2,First In Service Ltd,CR422285,One Leisure St Ives,Building Mtce,303
http://statistics.data.gov.uk/id/local-authority/12UE,Huntingdonshire District Council,08/12/2016,200420,16/31,5,510,Jba Construction & Management Services,CR416716,One Leisure St Ives,Building Mtce,303
http://statistics.data.gov.uk/id/local-authority/12UE,Huntingdonshire District Council,01/12/2016,199550,79759,5,301.54,Jsa Leisure Ltd,CR40187,One Leisure St Ives,Building Mtce,303
http://statistics.data.gov.uk/id/local-authority/12UE,Huntingdonshire District Council,28/12/2016,201288,79832,5,258.12,Jsa Leisure Ltd,CR40187,One Leisure St Ives,Building Mtce,303
http://statistics.data.gov.uk/id/local-authority/12UE,Huntingdonshire District Council,15/12/2016,200655,INV001581,5,684,Lynx Bowling Services,CR455532,One Leisure St Ives,Building Mtce,303
http://statistics.data.gov.uk/id/local-authority/12UE,Huntingdonshire District Council,21/12/2016,201481,748,5,624,Pool Maintenance Ltd,CR422505,One Leisure St Ives,Building Mtce,303
http://statistics.data.gov.uk/id/local-authority/12UE,Huntingdonshire District Council,08/12/2016,199555,9696,5,"1,797.60",Roger Wilson Electronics,CR028041,One Leisure St Ives,Building Mtce,303
http://statistics.data.gov.uk/id/local-authority/12UE,Huntingdonshire District Council,08/12/2016,200358,9705,5,"1,620.06",Roger Wilson Electronics,CR028041,One Leisure St Ives,Building Mtce,303
http://statistics.data.gov.uk/id/local-authority/12UE,Huntingdonshire District Council,08/12/2016,200361,9706,5,548.4,Roger Wilson Electronics,CR028041,One Leisure St Ives,Building Mtce,303
http://statistics.data.gov.uk/id/local-authority/12UE,Huntingdonshire District Council,15/12/2016,199670,SL-16110002,5,321,T Clarke East Ltd,CR482396,One Leisure St Ives,Building Mtce,303
http://statistics.data.gov.uk/id/local-authority/12UE,Huntingdonshire District Council,08/12/2016,200420,16/31,5,510,Jba Construction & Management Services,CR416716,One Leisure St Neots,Building Mtce,303
http://statistics.data.gov.uk/id/local-authority/12UE,Huntingdonshire District Council,01/12/2016,199549,79758,5,482.16,Jsa Leisure Ltd,CR40187,One Leisure St Neots,Building Mtce,303
http://statistics.data.gov.uk/id/local-authority/12UE,Huntingdonshire District Council,28/12/2016,201083,79830,5,378,Jsa Leisure Ltd,CR40187,One Leisure St Neots,Building Mtce,303
http://statistics.data.gov.uk/id/local-authority/12UE,Huntingdonshire District Council,21/12/2016,201481,748,5,624,Pool Maintenance Ltd,CR422505,One Leisure St Neots,Building Mtce,303
http://statistics.data.gov.uk/id/local-authority/12UE,Huntingdonshire District Council,01/12/2016,199216,26123,5,769.2,Sterling Hydrotech Ltd,CR422914,One Leisure St Neots,Building Mtce,303
http://statistics.data.gov.uk/id/local-authority/12UE,Huntingdonshire District Council,28/12/2016,201066,S3088464,5,259.4,First In Service Ltd,CR422285,Pathfinder House Site,Building Mtce,303
http://statistics.data.gov.uk/id/local-authority/12UE,Huntingdonshire District Council,28/12/2016,201064,GD539,5,138,Greenday Energy Ltd,CR422398,Pathfinder House Site,Building Mtce,303
http://statistics.data.gov.uk/id/local-authority/12UE,Huntingdonshire District Council,28/12/2016,201359,60755,5,756.24,Maskearaid Ltd,CR033423,Pathfinder House Site,Building Mtce,303
http://statistics.data.gov.uk/id/local-authority/12UE,Huntingdonshire District Council,28/12/2016,201128,23228,5,"1,021.84",B. S. Graves Electrical Ltd,CR000363,Public Conveniences,Building Mtce,303
http://statistics.data.gov.uk/id/local-authority/12UE,Huntingdonshire District Council,01/12/2016,199679,57673,5,"1,174.99",Beebys Limited,CR415822,Public Conveniences,Building Mtce,303
http://statistics.data.gov.uk/id/local-authority/12UE,Huntingdonshire District Council,08/12/2016,198978,42305,5,870,Dal-Rod (Camridgeshire),CR413675,Public Conveniences,Building Mtce,303
http://statistics.data.gov.uk/id/local-authority/12UE,Huntingdonshire District Council,08/12/2016,200391,25073,5,216,Panther Locksmiths Ltd,CR455366,Public Conveniences,Building Mtce,303
http://statistics.data.gov.uk/id/local-authority/12UE,Huntingdonshire District Council,08/12/2016,200643,28491/5106,5,450.34,J Breheny Civil Engineering Ltd,CR000314,Street Cleaning,Building Mtce,303
http://statistics.data.gov.uk/id/local-authority/12UE,Huntingdonshire District Council,21/12/2016,201540,118978,5,"3,610.33",Cale Briparc Ltd,CR401137,Off Street Parking,Car Park Machines,522
http://statistics.data.gov.uk/id/local-authority/12UE,Huntingdonshire District Council,28/12/2016,201057,14957,5,50.22,Jade Security Services Ltd,CR422256,Countryside,Cash Collection,702
http://statistics.data.gov.uk/id/local-authority/12UE,Huntingdonshire District Council,28/12/2016,201057,14957,5,351.54,Jade Security Services Ltd,CR422256,Interest Received,Cash Collection,702
http://statistics.data.gov.uk/id/local-authority/12UE,Huntingdonshire District Council,28/12/2016,200899,14956,5,"4,603.32",Jade Security Services Ltd,CR422256,Off Street Parking,Cash Collection,702
http://statistics.data.gov.uk/id/local-authority/12UE,Huntingdonshire District Council,28/12/2016,201057,14957,5,267.84,Jade Security Services Ltd,CR422256,One Leisure Huntingdon,Cash Collection,702
http://statistics.data.gov.uk/id/local-authority/12UE,Huntingdonshire District Council,28/12/2016,201057,14957,5,66.96,Jade Security Services Ltd,CR422256,One Leisure Ramsey,Cash Collection,702
http://statistics.data.gov.uk/id/local-authority/12UE,Huntingdonshire District Council,28/12/2016,201057,14957,5,66.96,Jade Security Services Ltd,CR422256,One Leisure Sawtry,Cash Collection,702
http://statistics.data.gov.uk/id/local-authority/12UE,Huntingdonshire District Council,28/12/2016,201057,14957,5,200.88,Jade Security Services Ltd,CR422256,One Leisure St Ives,Cash Collection,702
http://statistics.data.gov.uk/id/local-authority/12UE,Huntingdonshire District Council,28/12/2016,201057,14957,5,435.24,Jade Security Services Ltd,CR422256,One Leisure St Neots,Cash Collection,702
http://statistics.data.gov.uk/id/local-authority/12UE,Huntingdonshire District Council,01/12/2016,200356,INV-0306,5,"7,327.20",Big Day Events Ltd,CR453802,One Leisure St Ives,Catering,710
http://statistics.data.gov.uk/id/local-authority/12UE,Huntingdonshire District Council,15/12/2016,201186,INV0307,5,"4,845.12",Big Day Events Ltd,CR453802,One Leisure St Ives,Catering,710
http://statistics.data.gov.uk/id/local-authority/12UE,Huntingdonshire District Council,21/12/2016,201098,102050,5,"1,072.90",Brookes,CR422866,Pathfinder House Site,Catering,710
http://statistics.data.gov.uk/id/local-authority/12UE,Huntingdonshire District Council,08/12/2016,200818,2102838941,5,357.32,Booker Cash And Carry,CR027611,Countryside,Catering Materials,559
http://statistics.data.gov.uk/id/local-authority/12UE,Huntingdonshire District Council,21/12/2016,201543,2102865719,5,197.35,Booker Cash And Carry,CR027611,Countryside,Catering Materials,559
http://statistics.data.gov.uk/id/local-authority/12UE,Huntingdonshire District Council,08/12/2016,200069,INV065668,5,163.94,Slush Puppie Ltd,CR455958,One Leisure Huntingdon,Catering Materials,559
http://statistics.data.gov.uk/id/local-authority/12UE,Huntingdonshire District Council,08/12/2016,199662,2102826532,5,318.32,Booker Cash And Carry,CR027611,One Leisure St Ives,Catering Materials,559
http://statistics.data.gov.uk/id/local-authority/12UE,Huntingdonshire District Council,08/12/2016,200718,2102839392,5,54.08,Booker Cash And Carry,CR027611,One Leisure St Ives,Catering Materials,559
http://statistics.data.gov.uk/id/local-authority/12UE,Huntingdonshire District Council,15/12/2016,200045,2102840760,5,370.48,Booker Cash And Carry,CR027611,One Leisure St Ives,Catering Materials,559
http://statistics.data.gov.uk/id/local-authority/12UE,Huntingdonshire District Council,21/12/2016,201164,2102852750,5,38.66,Booker Cash And Carry,CR027611,One Leisure St Ives,Catering Materials,559
http://statistics.data.gov.uk/id/local-authority/12UE,Huntingdonshire District Council,28/12/2016,201472,2102867879,5,191.32,Booker Cash And Carry,CR027611,One Leisure St Ives,Catering Materials,559
http://statistics.data.gov.uk/id/local-authority/12UE,Huntingdonshire District Council,21/12/2016,200223,INV066711,5,573.8,Slush Puppie Ltd,CR455958,One Leisure St Ives,Catering Materials,559
http://statistics.data.gov.uk/id/local-authority/12UE,Huntingdonshire District Council,08/12/2016,199848,251109,5,239.67,South Lincs Food Service,CR033415,One Leisure St Ives,Catering Materials,559
http://statistics.data.gov.uk/id/local-authority/12UE,Huntingdonshire District Council,15/12/2016,201168,261288,5,211.72,South Lincs Food Service,CR033415,One Leisure St Ives,Catering Materials,559
http://statistics.data.gov.uk/id/local-authority/12UE,Huntingdonshire District Council,15/12/2016,199843,285423,5,119.38,Westminster Foodservice,CR455156,One Leisure St Ives,Catering Materials,559
http://statistics.data.gov.uk/id/local-authority/12UE,Huntingdonshire District Council,21/12/2016,200720,285882,5,165.54,Westminster Foodservice,CR455156,One Leisure St Ives,Catering Materials,559
http://statistics.data.gov.uk/id/local-authority/12UE,Huntingdonshire District Council,21/12/2016,200616,INV066537,5,163.93,Slush Puppie Ltd,CR455958,One Leisure St Neots,Catering Materials,559
http://statistics.data.gov.uk/id/local-authority/12UE,Huntingdonshire District Council,21/12/2016,200609,38SI 3837329,5,703.99,Brenntag Uk Ltd,CR015017,One Leisure St Ives,Chemicals,551
http://statistics.data.gov.uk/id/local-authority/12UE,Huntingdonshire District Council,08/12/2016,200016,209,,706.2,Inspired Spa Solutions,CR487218,One Leisure St Ives,Chemicals,551
http://statistics.data.gov.uk/id/local-authority/12UE,Huntingdonshire District Council,15/12/2016,199833,38SI 3836659,5,781.12,Brenntag Uk Ltd,CR015017,One Leisure St Neots,Chemicals,551
http://statistics.data.gov.uk/id/local-authority/12UE,Huntingdonshire District Council,21/12/2016,200236,210,,363,Inspired Spa Solutions,CR487218,One Leisure St Neots,Chemicals,551
http://statistics.data.gov.uk/id/local-authority/12UE,Huntingdonshire District Council,01/12/2016,200228,2162143,5,254.74,Computershare Vouchers Ltd,CR412205,Human Resources,Childcare Admin Vouchers,144
http://statistics.data.gov.uk/id/local-authority/12UE,Huntingdonshire District Council,21/12/2016,201726,C-0002434849,5,247.85,Computershare Vouchers Ltd,CR412205,Human Resources,Childcare Admin Vouchers,144
http://statistics.data.gov.uk/id/local-authority/12UE,Huntingdonshire District Council,08/12/2016,200818,2102838941,5,5.28,Booker Cash And Carry,CR027611,Countryside,Cleaning Materials,443
http://statistics.data.gov.uk/id/local-authority/12UE,Huntingdonshire District Council,28/12/2016,200359,160814,5,253.63,Chemaide Limited,CR416597,One Leisure Ramsey,Cleaning Materials,443
http://statistics.data.gov.uk/id/local-authority/12UE,Huntingdonshire District Council,08/12/2016,199662,2102826532,5,9.58,Booker Cash And Carry,CR027611,One Leisure St Ives,Cleaning Materials,443
http://statistics.data.gov.uk/id/local-authority/12UE,Huntingdonshire District Council,21/12/2016,199883,4251703,1,49.94,Espo,CR006566,One Leisure St Ives,Cleaning Materials,443
http://statistics.data.gov.uk/id/local-authority/12UE,Huntingdonshire District Council,28/12/2016,200912,4271589,1,168.84,Espo,CR006566,One Leisure St Ives,Cleaning Materials,443
http://statistics.data.gov.uk/id/local-authority/12UE,Huntingdonshire District Council,01/12/2016,199093,60538,5,285.97,Maskearaid Ltd,CR033423,One Leisure St Ives,Cleaning Materials,443
http://statistics.data.gov.uk/id/local-authority/12UE,Huntingdonshire District Council,15/12/2016,201168,261288,5,5.22,South Lincs Food Service,CR033415,One Leisure St Ives,Cleaning Materials,443
http://statistics.data.gov.uk/id/local-authority/12UE,Huntingdonshire District Council,01/12/2016,199308,60513,5,928.07,Maskearaid Ltd,CR033423,Pathfinder House Site,Cleaning Materials,443
http://statistics.data.gov.uk/id/local-authority/12UE,Huntingdonshire District Council,01/12/2016,199458,74472,5,147.77,Snackline Direct Ltd,CR478090,One Leisure Huntingdon,Confectionery,572
http://statistics.data.gov.uk/id/local-authority/12UE,Huntingdonshire District Council,08/12/2016,199662,2102826532,5,88.25,Booker Cash And Carry,CR027611,One Leisure St Ives,Confectionery,572
http://statistics.data.gov.uk/id/local-authority/12UE,Huntingdonshire District Council,15/12/2016,200045,2102840760,5,46.02,Booker Cash And Carry,CR027611,One Leisure St Ives,Confectionery,572
http://statistics.data.gov.uk/id/local-authority/12UE,Huntingdonshire District Council,21/12/2016,201164,2102852750,5,23.98,Booker Cash And Carry,CR027611,One Leisure St Ives,Confectionery,572
http://statistics.data.gov.uk/id/local-authority/12UE,Huntingdonshire District Council,28/12/2016,201472,2102867879,5,71.11,Booker Cash And Carry,CR027611,One Leisure St Ives,Confectionery,572
http://statistics.data.gov.uk/id/local-authority/12UE,Huntingdonshire District Council,08/12/2016,199848,251109,5,14.31,South Lincs Food Service,CR033415,One Leisure St Ives,Confectionery,572
http://statistics.data.gov.uk/id/local-authority/12UE,Huntingdonshire District Council,15/12/2016,199824,2016-0065,5,"17,996.40",Reinvigoration Ltd,CR423943,Chief Executive & Comt,Consultants,711
http://statistics.data.gov.uk/id/local-authority/12UE,Huntingdonshire District Council,15/12/2016,199870,208419,5,"8,211.84",39 Essex Chambers,CR423406,Dc Application Processing,Consultants,711
http://statistics.data.gov.uk/id/local-authority/12UE,Huntingdonshire District Council,21/12/2016,201516,122492,3,"21,000.00",Cornerstone Barristers,CR455436,Dc Application Processing,Consultants,711
http://statistics.data.gov.uk/id/local-authority/12UE,Huntingdonshire District Council,15/12/2016,199871,16033081,5,"15,658.97",Faithful & Gould,CR453585,Dc Application Processing,Consultants,711
http://statistics.data.gov.uk/id/local-authority/12UE,Huntingdonshire District Council,21/12/2016,200680,7416/16/701/PA,5,720,Reading Agricultural Consultants,CR404991,Dc Application Processing,Consultants,711
http://statistics.data.gov.uk/id/local-authority/12UE,Huntingdonshire District Council,21/12/2016,200742,66AW-HUNT01-03,5,"2,796.60",Wright Consulting,CR423525,Dc Application Processing,Consultants,711
http://statistics.data.gov.uk/id/local-authority/12UE,Huntingdonshire District Council,21/12/2016,200741,74AW-HUNT01-04,5,"4,344.90",Wright Consulting,CR423525,Dc Application Processing,Consultants,711
http://statistics.data.gov.uk/id/local-authority/12UE,Huntingdonshire District Council,28/12/2016,200917,9194511,6,781.32,East Of England Lga,CR422620,Human Resources,Consultants,711
http://statistics.data.gov.uk/id/local-authority/12UE,Huntingdonshire District Council,13/12/2016,201116,LTHR31,,"3,150.00",Willow Hr Limited,CR422016,Human Resources,Consultants,711
http://statistics.data.gov.uk/id/local-authority/12UE,Huntingdonshire District Council,01/12/2016,200027,470113045,5,"7,500.00",Dell Software International Ltd,CR424051,Imd Shared Service,Consultants,711
http://statistics.data.gov.uk/id/local-authority/12UE,Huntingdonshire District Council,08/12/2016,200735,SAC013596,5,"1,938.30",Aitchison Rafferty,CR422382,Industrial Properties,Consultants,711
http://statistics.data.gov.uk/id/local-authority/12UE,Huntingdonshire District Council,21/12/2016,200740,57692,5,"1,728.00",Barker Storey Matthews,CR400788,Industrial Properties,Consultants,711
http://statistics.data.gov.uk/id/local-authority/12UE,Huntingdonshire District Council,08/12/2016,200734,12560,5,"8,580.00",Tmd Building Consultancy Ltd,CR423954,Industrial Properties,Consultants,711
http://statistics.data.gov.uk/id/local-authority/12UE,Huntingdonshire District Council,21/12/2016,201715,1.80E+13,6,"1,800.00",Valuation Office Agency,CR480918,One Leisure Huntingdon,Consultants,711
http://statistics.data.gov.uk/id/local-authority/12UE,Huntingdonshire District Council,28/12/2016,200684,GD542,5,264,Greenday Energy Ltd,CR422398,One Leisure St Neots,Consultants,711
http://statistics.data.gov.uk/id/local-authority/12UE,Huntingdonshire District Council,01/12/2016,200397,16/27,5,816,Jba Construction & Management Services,CR416716,One Leisure St Neots,Consultants,711
http://statistics.data.gov.uk/id/local-authority/12UE,Huntingdonshire District Council,08/12/2016,200399,16/29,5,912,Jba Construction & Management Services,CR416716,One Leisure St Neots,Consultants,711
http://statistics.data.gov.uk/id/local-authority/12UE,Huntingdonshire District Council,08/12/2016,200736,HDC052,5,"2,586.00",Cfl Estate Services,CR455208,Property Development And Mgt,Consultants,711
http://statistics.data.gov.uk/id/local-authority/12UE,Huntingdonshire District Council,28/12/2016,200737,HDC053,5,"1,932.00",Cfl Estate Services,CR455208,Property Development And Mgt,Consultants,711
http://statistics.data.gov.uk/id/local-authority/12UE,Huntingdonshire District Council,21/12/2016,200441,H0010005,5,"1,700.00",Wood Green Animal Shelters,CR019139,Animal Welfare,Contribution (Paid Out),810
http://statistics.data.gov.uk/id/local-authority/12UE,Huntingdonshire District Council,21/12/2016,200362,H0010006,5,"1,500.00",Wood Green Animal Shelters,CR019139,Animal Welfare,Contribution (Paid Out),810
http://statistics.data.gov.uk/id/local-authority/12UE,Huntingdonshire District Council,15/12/2016,201190,827,5,"2,092.25",Hact,CR455657,Concessionary Fares,Contribution (Paid Out),810
http://statistics.data.gov.uk/id/local-authority/12UE,Huntingdonshire District Council,08/12/2016,200681,844,5,"2,385.75",Hact,CR455657,Concessionary Fares,Contribution (Paid Out),810
http://statistics.data.gov.uk/id/local-authority/12UE,Huntingdonshire District Council,08/12/2016,200026,10705975,5,"714,803.35",Cambridgeshire County Council,CR017440,Planning Capital,Contribution (Paid Out),810
http://statistics.data.gov.uk/id/local-authority/12UE,Huntingdonshire District Council,08/12/2016,200682,89023,5,"1,458.00",Rics,CR022422,Dc Application Processing,Corporate Subscriptions,754
http://statistics.data.gov.uk/id/local-authority/12UE,Huntingdonshire District Council,21/12/2016,200679,9000857150,5,"3,250.00",Thomson Reuters,CR412314,Planning M U'S,Corporate Subscriptions,754
http://statistics.data.gov.uk/id/local-authority/12UE,Huntingdonshire District Council,15/12/2016,604598,61223787,6,294.01,Tameside Metropolitan Borough Council,CR401786,Revenue Services Mus,Corporate Subscriptions,754
http://statistics.data.gov.uk/id/local-authority/12UE,Huntingdonshire District Council,01/12/2016,200228,2162143,5,"6,065.00",Computershare Vouchers Ltd,CR412205,Child Care Vouchers - Payroll,Deductions Paid To Third Party,26
http://statistics.data.gov.uk/id/local-authority/12UE,Huntingdonshire District Council,21/12/2016,201726,C-0002434849,5,"5,901.00",Computershare Vouchers Ltd,CR412205,Child Care Vouchers - Payroll,Deductions Paid To Third Party,26
http://statistics.data.gov.uk/id/local-authority/12UE,Huntingdonshire District Council,21/12/2016,201507,11458902300,5,287.24,E-On Energy,CR416430,Bus Shelters,Electricity,420
http://statistics.data.gov.uk/id/local-authority/12UE,Huntingdonshire District Council,01/12/2016,200244,41226290,5,"1,811.78",Swalec,CR407130,Countryside,Electricity,420
http://statistics.data.gov.uk/id/local-authority/12UE,Huntingdonshire District Council,21/12/2016,201486,311226373,5,565.81,Swalec,CR407130,Countryside,Electricity,420
http://statistics.data.gov.uk/id/local-authority/12UE,Huntingdonshire District Council,01/12/2016,200437,311226373,5,482.95,Swalec,CR407130,Countryside,Electricity,420
http://statistics.data.gov.uk/id/local-authority/12UE,Huntingdonshire District Council,21/12/2016,200929,65924,5,"5,212.86",Haven Power Ltd,CR455940,E F H And Depots,Electricity,420
http://statistics.data.gov.uk/id/local-authority/12UE,Huntingdonshire District Council,21/12/2016,201535,801225389,5,277.47,Swalec,CR407130,E F H And Depots,Electricity,420
http://statistics.data.gov.uk/id/local-authority/12UE,Huntingdonshire District Council,21/12/2016,201485,481291201,5,"3,010.59",Swalec,CR407130,Housing Services Other,Electricity,420
http://statistics.data.gov.uk/id/local-authority/12UE,Huntingdonshire District Council,01/12/2016,200253,481291201,5,"1,897.88",Swalec,CR407130,Housing Services Other,Electricity,420
http://statistics.data.gov.uk/id/local-authority/12UE,Huntingdonshire District Council,21/12/2016,201185,371226896,5,706.63,Swalec,CR407130,Off Street Parking,Electricity,420
http://statistics.data.gov.uk/id/local-authority/12UE,Huntingdonshire District Council,01/12/2016,200426,441567103,5,"1,556.06",Swalec,CR407130,Off Street Parking,Electricity,420
http://statistics.data.gov.uk/id/local-authority/12UE,Huntingdonshire District Council,21/12/2016,201052,65916,5,"5,047.48",Haven Power Ltd,CR455940,One Leisure Huntingdon,Electricity,420
http://statistics.data.gov.uk/id/local-authority/12UE,Huntingdonshire District Council,01/12/2016,200247,381239505,5,"1,123.72",Swalec,CR407130,One Leisure Huntingdon,Electricity,420
http://statistics.data.gov.uk/id/local-authority/12UE,Huntingdonshire District Council,21/12/2016,201490,481677109,5,"1,974.45",Swalec,CR407130,One Leisure Huntingdon,Electricity,420
http://statistics.data.gov.uk/id/local-authority/12UE,Huntingdonshire District Council,01/12/2016,200423,611686620,5,291.6,Swalec,CR407130,One Leisure Huntingdon,Electricity,420
http://statistics.data.gov.uk/id/local-authority/12UE,Huntingdonshire District Council,01/12/2016,200421,65187167,5,291.6,Swalec,CR407130,One Leisure Ramsey,Electricity,420
http://statistics.data.gov.uk/id/local-authority/12UE,Huntingdonshire District Council,21/12/2016,201488,151678759,5,"3,057.58",Swalec,CR407130,One Leisure Ramsey,Electricity,420
http://statistics.data.gov.uk/id/local-authority/12UE,Huntingdonshire District Council,01/12/2016,200422,64185498,5,291.6,Swalec,CR407130,One Leisure Sawtry,Electricity,420
http://statistics.data.gov.uk/id/local-authority/12UE,Huntingdonshire District Council,28/12/2016,201489,211687030,5,"4,478.04",Swalec,CR407130,One Leisure Sawtry,Electricity,420
http://statistics.data.gov.uk/id/local-authority/12UE,Huntingdonshire District Council,28/12/2016,201985,211687030,5,"4,291.33",Swalec,CR407130,One Leisure Sawtry,Electricity,420
http://statistics.data.gov.uk/id/local-authority/12UE,Huntingdonshire District Council,21/12/2016,201054,65919,5,"8,952.32",Haven Power Ltd,CR455940,One Leisure St Ives,Electricity,420
http://statistics.data.gov.uk/id/local-authority/12UE,Huntingdonshire District Council,21/12/2016,201055,65922,5,"4,451.20",Haven Power Ltd,CR455940,One Leisure St Ives,Electricity,420
http://statistics.data.gov.uk/id/local-authority/12UE,Huntingdonshire District Council,21/12/2016,200930,65914,5,"9,240.95",Haven Power Ltd,CR455940,One Leisure St Neots,Electricity,420
http://statistics.data.gov.uk/id/local-authority/12UE,Huntingdonshire District Council,01/12/2016,200424,41684021,5,291.6,Swalec,CR407130,Parks & Open Spaces,Electricity,420
http://statistics.data.gov.uk/id/local-authority/12UE,Huntingdonshire District Council,28/12/2016,201646,121573804,5,"1,064.71",Swalec,CR407130,Parks & Open Spaces,Electricity,420
http://statistics.data.gov.uk/id/local-authority/12UE,Huntingdonshire District Council,21/12/2016,201053,65912,5,"10,037.82",Haven Power Ltd,CR455940,Pathfinder House Site,Electricity,420
http://statistics.data.gov.uk/id/local-authority/12UE,Huntingdonshire District Council,28/12/2016,200844,685278,5,625.2,Callcredit Ltd,CR455548,Council Tax,Enquiries,723
http://statistics.data.gov.uk/id/local-authority/12UE,Huntingdonshire District Council,28/12/2016,200844,685278,5,49.2,Callcredit Ltd,CR455548,Financial Services Mus,Enquiries,723
http://statistics.data.gov.uk/id/local-authority/12UE,Huntingdonshire District Council,28/12/2016,200844,685278,5,70.8,Callcredit Ltd,CR455548,Housing  Benefits Admin,Enquiries,723
http://statistics.data.gov.uk/id/local-authority/12UE,Huntingdonshire District Council,28/12/2016,200844,685278,5,171.6,Callcredit Ltd,CR455548,Revenue Services Mus,Enquiries,723
http://statistics.data.gov.uk/id/local-authority/12UE,Huntingdonshire District Council,15/12/2016,201166,298,5,858.73,2 Ton Productions,CR410213,One Leisure St Ives,Entertainments Inc Cable Tv,744
http://statistics.data.gov.uk/id/local-authority/12UE,Huntingdonshire District Council,08/12/2016,200339,15482,5,"3,110.00",Barry Collings Entertainment,CR422895,One Leisure St Ives,Entertainments Inc Cable Tv,744
http://statistics.data.gov.uk/id/local-authority/12UE,Huntingdonshire District Council,01/12/2016,200357,27/11/2016-1,5,531,Cambridgeshire Photobooths Co Uk,CR423571,One Leisure St Ives,Entertainments Inc Cable Tv,744
http://statistics.data.gov.uk/id/local-authority/12UE,Huntingdonshire District Council,08/12/2016,200882,42374,5,300,Dings Entertainment,CR412228,One Leisure St Ives,Entertainments Inc Cable Tv,744
http://statistics.data.gov.uk/id/local-authority/12UE,Huntingdonshire District Council,21/12/2016,201678,42519,5,300,Dings Entertainment,CR412228,One Leisure St Ives,Entertainments Inc Cable Tv,744
http://statistics.data.gov.uk/id/local-authority/12UE,Huntingdonshire District Council,08/12/2016,200453,INV-0008,,324.6,K D Theatre Productions Ltd,CR424109,One Leisure St Ives,Entertainments Inc Cable Tv,744
http://statistics.data.gov.uk/id/local-authority/12UE,Huntingdonshire District Council,15/12/2016,201312,53541,5,"6,869.84",Off The Kerb Productions,CR423529,One Leisure St Ives,Entertainments Inc Cable Tv,744
http://statistics.data.gov.uk/id/local-authority/12UE,Huntingdonshire District Council,01/12/2016,200327,B NIGHT 5 NOV,5,"1,541.42",Starlite Roadshow,CR024127,One Leisure St Ives,Entertainments Inc Cable Tv,744
http://statistics.data.gov.uk/id/local-authority/12UE,Huntingdonshire District Council,21/12/2016,201099,13901,5,"1,101.60",West Country Group,CR400581,Document Centre,Envelopes,224
http://statistics.data.gov.uk/id/local-authority/12UE,Huntingdonshire District Council,01/12/2016,199423,54264,5,594.85,Landmark Trading Ltd,CR411433,Arboricultural Team,Equipment,500
http://statistics.data.gov.uk/id/local-authority/12UE,Huntingdonshire District Council,21/12/2016,201143,188186,5,892.86,Arthur Ibbett Ltd,CR000430,Countryside,Equipment,500
http://statistics.data.gov.uk/id/local-authority/12UE,Huntingdonshire District Council,01/12/2016,199196,6172,5,66,Alistair Bromhead Ltd,CR424063,E F H And Depots,Equipment,500
http://statistics.data.gov.uk/id/local-authority/12UE,Huntingdonshire District Council,08/12/2016,200391,25073,5,4.8,Panther Locksmiths Ltd,CR455366,Environmental Imps Mgt,Equipment,500
http://statistics.data.gov.uk/id/local-authority/12UE,Huntingdonshire District Council,08/12/2016,200391,25073,5,48,Panther Locksmiths Ltd,CR455366,Environmental Management,Equipment,500
http://statistics.data.gov.uk/id/local-authority/12UE,Huntingdonshire District Council,28/12/2016,201984,206951,5,719.1,Digital Id Limited,CR453985,Flexible Working,Equipment,500
http://statistics.data.gov.uk/id/local-authority/12UE,Huntingdonshire District Council,28/12/2016,201984,206951,5,10.74,Digital Id Limited,CR453985,Flexible Working,Equipment,500
http://statistics.data.gov.uk/id/local-authority/12UE,Huntingdonshire District Council,21/12/2016,200722,SI0220013,5,150,Klipspringer Ltd,CR405590,Food Safety,Equipment,500
http://statistics.data.gov.uk/id/local-authority/12UE,Huntingdonshire District Council,21/12/2016,200722,SI0220013,5,46.8,Klipspringer Ltd,CR405590,Food Safety,Equipment,500
http://statistics.data.gov.uk/id/local-authority/12UE,Huntingdonshire District Council,21/12/2016,200722,SI0220013,5,74.4,Klipspringer Ltd,CR405590,Food Safety,Equipment,500
http://statistics.data.gov.uk/id/local-authority/12UE,Huntingdonshire District Council,28/12/2016,200850,188697,5,"3,880.80",Arthur Ibbett Ltd,CR000430,Grounds Maintenance,Equipment,500
http://statistics.data.gov.uk/id/local-authority/12UE,Huntingdonshire District Council,28/12/2016,200889,188698,5,636,Arthur Ibbett Ltd,CR000430,Grounds Maintenance,Equipment,500
http://statistics.data.gov.uk/id/local-authority/12UE,Huntingdonshire District Council,21/12/2016,200313,39145,5,"2,369.00",Groundsman,CR422159,Grounds Maintenance,Equipment,500
http://statistics.data.gov.uk/id/local-authority/12UE,Huntingdonshire District Council,28/12/2016,201154,39231,5,367.2,Groundsman,CR422159,Grounds Maintenance,Equipment,500
http://statistics.data.gov.uk/id/local-authority/12UE,Huntingdonshire District Council,28/12/2016,201152,39234,5,367.43,Groundsman,CR422159,Grounds Maintenance,Equipment,500
http://statistics.data.gov.uk/id/local-authority/12UE,Huntingdonshire District Council,08/12/2016,199261,40172,5,9.54,Communications Solutions Uk Ltd,COMMUNIC,Licences,Equipment,500
http://statistics.data.gov.uk/id/local-authority/12UE,Huntingdonshire District Council,08/12/2016,199261,40172,5,113.42,Communications Solutions Uk Ltd,COMMUNIC,Licences,Equipment,500
http://statistics.data.gov.uk/id/local-authority/12UE,Huntingdonshire District Council,08/12/2016,199261,40172,5,896.4,Communications Solutions Uk Ltd,COMMUNIC,Licences,Equipment,500
http://statistics.data.gov.uk/id/local-authority/12UE,Huntingdonshire District Council,08/12/2016,200391,25073,5,96,Panther Locksmiths Ltd,CR455366,Off Street Parking,Equipment,500
http://statistics.data.gov.uk/id/local-authority/12UE,Huntingdonshire District Council,21/12/2016,201740,SI-0000245722,5,283.58,Bishop Sport & Leisure,CR401539,One Leisure Active Lifestyles,Equipment,500
http://statistics.data.gov.uk/id/local-authority/12UE,Huntingdonshire District Council,01/12/2016,199196,6172,5,66,Alistair Bromhead Ltd,CR424063,One Leisure Huntingdon,Equipment,500
http://statistics.data.gov.uk/id/local-authority/12UE,Huntingdonshire District Council,21/12/2016,200606,829281,5,248.64,J P Lennard Ltd,CR028595,One Leisure Huntingdon,Equipment,500
http://statistics.data.gov.uk/id/local-authority/12UE,Huntingdonshire District Council,21/12/2016,200419,1127953646,5,542,Konica Minolta,CR478866,One Leisure Huntingdon,Equipment,500
http://statistics.data.gov.uk/id/local-authority/12UE,Huntingdonshire District Council,08/12/2016,200880,16012497,5,"2,167.20",Technogym Uk Ltd,CR033037,One Leisure Huntingdon,Equipment,500
http://statistics.data.gov.uk/id/local-authority/12UE,Huntingdonshire District Council,21/12/2016,200606,829281,5,248.64,J P Lennard Ltd,CR028595,One Leisure Ramsey,Equipment,500
http://statistics.data.gov.uk/id/local-authority/12UE,Huntingdonshire District Council,15/12/2016,605743,REDACTED PERSONAL DATA,2,465.6,REDACTED PERSONAL DATA,CR479877,One Leisure Ramsey,Equipment,500
http://statistics.data.gov.uk/id/local-authority/12UE,Huntingdonshire District Council,08/12/2016,200880,16012497,5,"1,447.20",Technogym Uk Ltd,CR033037,One Leisure Ramsey,Equipment,500
http://statistics.data.gov.uk/id/local-authority/12UE,Huntingdonshire District Council,21/12/2016,200606,829281,5,248.64,J P Lennard Ltd,CR028595,One Leisure Sawtry,Equipment,500
http://statistics.data.gov.uk/id/local-authority/12UE,Huntingdonshire District Council,08/12/2016,200880,16012497,5,727.2,Technogym Uk Ltd,CR033037,One Leisure Sawtry,Equipment,500
http://statistics.data.gov.uk/id/local-authority/12UE,Huntingdonshire District Council,01/12/2016,199196,6172,5,66,Alistair Bromhead Ltd,CR424063,One Leisure St Ives,Equipment,500
http://statistics.data.gov.uk/id/local-authority/12UE,Huntingdonshire District Council,21/12/2016,199883,4251703,1,61.67,Espo,CR006566,One Leisure St Ives,Equipment,500
http://statistics.data.gov.uk/id/local-authority/12UE,Huntingdonshire District Council,21/12/2016,200606,829281,5,248.64,J P Lennard Ltd,CR028595,One Leisure St Ives,Equipment,500
http://statistics.data.gov.uk/id/local-authority/12UE,Huntingdonshire District Council,08/12/2016,200361,9706,5,650.87,Roger Wilson Electronics,CR028041,One Leisure St Ives,Equipment,500
http://statistics.data.gov.uk/id/local-authority/12UE,Huntingdonshire District Council,08/12/2016,200880,16012497,5,"2,167.20",Technogym Uk Ltd,CR033037,One Leisure St Ives,Equipment,500
http://statistics.data.gov.uk/id/local-authority/12UE,Huntingdonshire District Council,21/12/2016,200606,829281,5,344.64,J P Lennard Ltd,CR028595,One Leisure St Neots,Equipment,500
http://statistics.data.gov.uk/id/local-authority/12UE,Huntingdonshire District Council,08/12/2016,200880,16012497,5,"2,167.20",Technogym Uk Ltd,CR033037,One Leisure St Neots,Equipment,500
http://statistics.data.gov.uk/id/local-authority/12UE,Huntingdonshire District Council,01/12/2016,199196,6172,5,66,Alistair Bromhead Ltd,CR424063,Pathfinder House Site,Equipment,500
http://statistics.data.gov.uk/id/local-authority/12UE,Huntingdonshire District Council,21/12/2016,200771,756697158,5,399.99,Screwfix Direct,CR415893,Pathfinder House Site,Equipment,500
http://statistics.data.gov.uk/id/local-authority/12UE,Huntingdonshire District Council,01/12/2016,199135,186912,5,641.2,Arthur Ibbett Ltd,CR000430,Street Cleaning,Equipment,500
http://statistics.data.gov.uk/id/local-authority/12UE,Huntingdonshire District Council,01/12/2016,199156,10212,5,"4,345.20",Overton Uk Limited,CR423960,Street Cleaning,Equipment,500
http://statistics.data.gov.uk/id/local-authority/12UE,Huntingdonshire District Council,01/12/2016,199503,44960,5,582,Coffee Solutions,CR480375,One Leisure Huntingdon,Equipment Hire,507
http://statistics.data.gov.uk/id/local-authority/12UE,Huntingdonshire District Council,15/12/2016,199977,7536,5,300,Air Monitors Ltd,CR480691,Air Quality,Equipment Maintenance,511
http://statistics.data.gov.uk/id/local-authority/12UE,Huntingdonshire District Council,01/12/2016,200428,4269,5,777.6,Access Hire And Hydraulics,CR422526,Cctv Shared Service,Equipment Maintenance,511
http://statistics.data.gov.uk/id/local-authority/12UE,Huntingdonshire District Council,28/12/2016,200666,4289,5,"1,101.60",Access Hire And Hydraulics,CR422526,Cctv Shared Service,Equipment Maintenance,511
http://statistics.data.gov.uk/id/local-authority/12UE,Huntingdonshire District Council,21/12/2016,201338,SIN082023,5,572.4,Quadrant Security Group,CR027775,Cctv Shared Service,Equipment Maintenance,511
http://statistics.data.gov.uk/id/local-authority/12UE,Huntingdonshire District Council,21/12/2016,201333,SIN082043,5,"3,600.60",Quadrant Security Group,CR027775,Cctv Shared Service,Equipment Maintenance,511
http://statistics.data.gov.uk/id/local-authority/12UE,Huntingdonshire District Council,21/12/2016,201333,SIN082043,5,"2,840.83",Quadrant Security Group,CR027775,Cctv Shared Service,Equipment Maintenance,511
http://statistics.data.gov.uk/id/local-authority/12UE,Huntingdonshire District Council,28/12/2016,201183,SIN082403,5,"3,600.60",Quadrant Security Group,CR027775,Cctv Shared Service,Equipment Maintenance,511
http://statistics.data.gov.uk/id/local-authority/12UE,Huntingdonshire District Council,28/12/2016,201183,SIN082403,5,"2,840.83",Quadrant Security Group,CR027775,Cctv Shared Service,Equipment Maintenance,511
http://statistics.data.gov.uk/id/local-authority/12UE,Huntingdonshire District Council,28/12/2016,201101,9158956,5,"5,609.58",Canon Uk Ltd,CR409013,Document Centre,Equipment Maintenance,511
http://statistics.data.gov.uk/id/local-authority/12UE,Huntingdonshire District Council,28/12/2016,201102,9158957,5,"2,023.85",Canon Uk Ltd,CR409013,Document Centre,Equipment Maintenance,511
http://statistics.data.gov.uk/id/local-authority/12UE,Huntingdonshire District Council,21/12/2016,200625,1127791597,5,"2,052.24",Konica Minolta,CR478866,Document Centre,Equipment Maintenance,511
http://statistics.data.gov.uk/id/local-authority/12UE,Huntingdonshire District Council,28/12/2016,200836,1093391,5,600,Dts Solutions (Uk) Ltd,CR001981,Fleet Management,Equipment Maintenance,511
http://statistics.data.gov.uk/id/local-authority/12UE,Huntingdonshire District Council,21/12/2016,201296,42006456 R7,5,612,Imtech Aqua Maintenance Ltd,CR422225,Imd Shared Service,Equipment Maintenance,511
http://statistics.data.gov.uk/id/local-authority/12UE,Huntingdonshire District Council,21/12/2016,201298,42006457 R7,5,612,Imtech Aqua Maintenance Ltd,CR422225,Imd Shared Service,Equipment Maintenance,511
http://statistics.data.gov.uk/id/local-authority/12UE,Huntingdonshire District Council,01/12/2016,199544,2714,5,601.44,Gym Upholstery Uk,CR424035,One Leisure Huntingdon,Equipment Maintenance,511
http://statistics.data.gov.uk/id/local-authority/12UE,Huntingdonshire District Council,08/12/2016,200454,2874,5,420,House Of Play Ltd,CR479346,One Leisure Huntingdon,Equipment Maintenance,511
http://statistics.data.gov.uk/id/local-authority/12UE,Huntingdonshire District Council,01/12/2016,199543,2713,5,828.24,Gym Upholstery Uk,CR424035,One Leisure Ramsey,Equipment Maintenance,511
http://statistics.data.gov.uk/id/local-authority/12UE,Huntingdonshire District Council,01/12/2016,199542,2712,5,711.6,Gym Upholstery Uk,CR424035,One Leisure St Ives,Equipment Maintenance,511
http://statistics.data.gov.uk/id/local-authority/12UE,Huntingdonshire District Council,15/12/2016,200655,INV001581,5,"1,250.00",Lynx Bowling Services,CR455532,One Leisure St Ives,Equipment Maintenance,511
http://statistics.data.gov.uk/id/local-authority/12UE,Huntingdonshire District Council,08/12/2016,200391,25073,5,2.4,Panther Locksmiths Ltd,CR455366,Public Conveniences,Equipment Maintenance,511
http://statistics.data.gov.uk/id/local-authority/12UE,Huntingdonshire District Council,21/12/2016,200070,23182,5,288.77,B. S. Graves Electrical Ltd,CR000363,One Leisure Huntingdon,Fire & Security,450
http://statistics.data.gov.uk/id/local-authority/12UE,Huntingdonshire District Council,28/12/2016,200605,18819,5,552,Activ Security Uk Ltd,CR409710,One Leisure Ramsey,Fire & Security,450
http://statistics.data.gov.uk/id/local-authority/12UE,Huntingdonshire District Council,28/12/2016,200650,7080593714,5,"1,527.72",Honeywell Novar Systems,CR406826,One Leisure Ramsey,Fire & Security,450
http://statistics.data.gov.uk/id/local-authority/12UE,Huntingdonshire District Council,21/12/2016,200352,125208,5,274.4,New Flame,CR455470,One Leisure Ramsey,Fire & Security,450
http://statistics.data.gov.uk/id/local-authority/12UE,Huntingdonshire District Council,15/12/2016,200653,991167844,5,"1,215.24",Abel Alarm Company Ltd,CR000201,One Leisure St Ives,Fire & Security,450
http://statistics.data.gov.uk/id/local-authority/12UE,Huntingdonshire District Council,28/12/2016,201653,7080595617,5,783.11,Honeywell Novar Systems,CR406826,One Leisure St Ives,Fire & Security,450
http://statistics.data.gov.uk/id/local-authority/12UE,Huntingdonshire District Council,08/12/2016,199502,6067899,5,"1,279.50",Chubb Fire And Security Ltd,CR478924,One Leisure St Neots,Fire & Security,450
http://statistics.data.gov.uk/id/local-authority/12UE,Huntingdonshire District Council,28/12/2016,200452,97146,,427.02,Saber Daynes,CR424110,Chief Executive & Comt,Furniture,200
http://statistics.data.gov.uk/id/local-authority/12UE,Huntingdonshire District Council,15/12/2016,201124,12489089940,5,622.37,E-On Energy,CR416430,E F H And Depots,Gas,421
http://statistics.data.gov.uk/id/local-authority/12UE,Huntingdonshire District Council,15/12/2016,201118,12489088110,5,"2,696.02",E-On Energy,CR416430,One Leisure Huntingdon,Gas,421
http://statistics.data.gov.uk/id/local-authority/12UE,Huntingdonshire District Council,15/12/2016,201122,12489088970,5,705.34,E-On Energy,CR416430,One Leisure Huntingdon,Gas,421
http://statistics.data.gov.uk/id/local-authority/12UE,Huntingdonshire District Council,15/12/2016,201125,12489090790,5,"1,659.89",E-On Energy,CR416430,One Leisure Ramsey,Gas,421
http://statistics.data.gov.uk/id/local-authority/12UE,Huntingdonshire District Council,01/12/2016,200388,12489090790,5,"1,382.83",E-On Energy,CR416430,One Leisure Ramsey,Gas,421
http://statistics.data.gov.uk/id/local-authority/12UE,Huntingdonshire District Council,15/12/2016,201121,12489088700,5,"1,236.53",E-On Energy,CR416430,One Leisure Sawtry,Gas,421
http://statistics.data.gov.uk/id/local-authority/12UE,Huntingdonshire District Council,15/12/2016,201123,12489089510,5,723.55,E-On Energy,CR416430,One Leisure St Ives,Gas,421
http://statistics.data.gov.uk/id/local-authority/12UE,Huntingdonshire District Council,15/12/2016,201126,12489090950,5,"4,589.34",E-On Energy,CR416430,One Leisure St Ives,Gas,421
http://statistics.data.gov.uk/id/local-authority/12UE,Huntingdonshire District Council,15/12/2016,201119,12489088380,5,"3,577.51",E-On Energy,CR416430,One Leisure St Neots,Gas,421
http://statistics.data.gov.uk/id/local-authority/12UE,Huntingdonshire District Council,15/12/2016,201120,12489088540,5,296.2,E-On Energy,CR416430,One Leisure St Neots,Gas,421
http://statistics.data.gov.uk/id/local-authority/12UE,Huntingdonshire District Council,15/12/2016,201188,13313569100,5,"1,880.21",E-On Energy,CR416430,Pathfinder House Site,Gas,421
http://statistics.data.gov.uk/id/local-authority/12UE,Huntingdonshire District Council,21/12/2016,200233,638769,5,37.05,Lacons,CR422174,One Leisure Huntingdon,Gas Cylinders (Incl. Bars),567
http://statistics.data.gov.uk/id/local-authority/12UE,Huntingdonshire District Council,15/12/2016,199825,637888,5,111.72,Lacons,CR422174,One Leisure St Ives,Gas Cylinders (Incl. Bars),567
http://statistics.data.gov.uk/id/local-authority/12UE,Huntingdonshire District Council,28/12/2016,201061,GRANT PAYMENT,5,"2,500.00",Care Network,CR477579,Miscellaneous Grants,Grants (Paid Out),800
http://statistics.data.gov.uk/id/local-authority/12UE,Huntingdonshire District Council,28/12/2016,605599,GRANT PAYMENT,5,"4,750.00",Disability Information Service Huntingdonshir,CR408884,Miscellaneous Grants,Grants (Paid Out),800
http://statistics.data.gov.uk/id/local-authority/12UE,Huntingdonshire District Council,28/12/2016,605877,GRANT PAYMENT,4,"9,250.00",Huntingdonshire  Volunteer Centre,CR410643,Miscellaneous Grants,Grants (Paid Out),800
http://statistics.data.gov.uk/id/local-authority/12UE,Huntingdonshire District Council,01/12/2016,198677,900759183,5,807.04,Portakabin Ltd,CR478566,Miscellaneous Grants,Grants (Paid Out),800
http://statistics.data.gov.uk/id/local-authority/12UE,Huntingdonshire District Council,28/12/2016,200776,900762338,5,807.04,Portakabin Ltd,CR478566,Miscellaneous Grants,Grants (Paid Out),800
http://statistics.data.gov.uk/id/local-authority/12UE,Huntingdonshire District Council,28/12/2016,605598,GRANT PAYMENT,4,"26,325.00",Rural Cambs Citzens Advice Bureau,CR455454,Miscellaneous Grants,Grants (Paid Out),800
http://statistics.data.gov.uk/id/local-authority/12UE,Huntingdonshire District Council,01/12/2016,199861,,5,"1,178.35",Cambridgeshire County Council,CR017440,Cctv Shared Service,Hired Staff,100
http://statistics.data.gov.uk/id/local-authority/12UE,Huntingdonshire District Council,28/12/2016,200921,INV1725026,5,286.82,Interaction Recruitment Plc,CR007892,Cctv Shared Service,Hired Staff,100
http://statistics.data.gov.uk/id/local-authority/12UE,Huntingdonshire District Council,28/12/2016,201328,122365,5,947.21,Peterborough City Council,CR000619,Cctv Shared Service,Hired Staff,100
http://statistics.data.gov.uk/id/local-authority/12UE,Huntingdonshire District Council,15/12/2016,200916,371481 120031,5,606.77,Peterborough City Council,CR000619,Cctv Shared Service,Hired Staff,100
http://statistics.data.gov.uk/id/local-authority/12UE,Huntingdonshire District Council,15/12/2016,200916,371481 120031,5,757.42,Peterborough City Council,CR000619,Cctv Shared Service,Hired Staff,100
http://statistics.data.gov.uk/id/local-authority/12UE,Huntingdonshire District Council,15/12/2016,200916,371481 120031,5,83.74,Peterborough City Council,CR000619,Cctv Shared Service,Hired Staff,100
http://statistics.data.gov.uk/id/local-authority/12UE,Huntingdonshire District Council,15/12/2016,200916,371481 120031,5,978.08,Peterborough City Council,CR000619,Cctv Shared Service,Hired Staff,100
http://statistics.data.gov.uk/id/local-authority/12UE,Huntingdonshire District Council,28/12/2016,201184,SIN082373,5,"7,170.00",Quadrant Security Group,CR027775,Cctv Shared Service,Hired Staff,100
http://statistics.data.gov.uk/id/local-authority/12UE,Huntingdonshire District Council,01/12/2016,199151,2112,5,"2,630.59",Change Agents Uk Trading Ltd,CR477664,Domestic Refuse,Hired Staff,100
http://statistics.data.gov.uk/id/local-authority/12UE,Huntingdonshire District Council,28/12/2016,200828,2127,5,"2,665.57",Change Agents Uk Trading Ltd,CR477664,Domestic Refuse,Hired Staff,100
http://statistics.data.gov.uk/id/local-authority/12UE,Huntingdonshire District Council,01/12/2016,199693,IN0557504,5,"2,158.80",Staffline Group,CR416827,Domestic Refuse,Hired Staff,100
http://statistics.data.gov.uk/id/local-authority/12UE,Huntingdonshire District Council,01/12/2016,199691,IN0557505,5,"3,563.88",Staffline Group,CR416827,Domestic Refuse,Hired Staff,100
http://statistics.data.gov.uk/id/local-authority/12UE,Huntingdonshire District Council,21/12/2016,200446,IN0559369,5,"2,522.52",Staffline Group,CR416827,Domestic Refuse,Hired Staff,100
http://statistics.data.gov.uk/id/local-authority/12UE,Huntingdonshire District Council,21/12/2016,200442,IN0559370,5,"3,695.84",Staffline Group,CR416827,Domestic Refuse,Hired Staff,100
http://statistics.data.gov.uk/id/local-authority/12UE,Huntingdonshire District Council,21/12/2016,200447,IN0561233,5,"3,116.16",Staffline Group,CR416827,Domestic Refuse,Hired Staff,100
http://statistics.data.gov.uk/id/local-authority/12UE,Huntingdonshire District Council,21/12/2016,200443,IN0561234,5,"2,945.50",Staffline Group,CR416827,Domestic Refuse,Hired Staff,100
http://statistics.data.gov.uk/id/local-authority/12UE,Huntingdonshire District Council,21/12/2016,200829,IN0562769,5,"2,886.25",Staffline Group,CR416827,Domestic Refuse,Hired Staff,100
http://statistics.data.gov.uk/id/local-authority/12UE,Huntingdonshire District Council,21/12/2016,200825,IN0562770,5,"4,048.84",Staffline Group,CR416827,Domestic Refuse,Hired Staff,100
http://statistics.data.gov.uk/id/local-authority/12UE,Huntingdonshire District Council,28/12/2016,201317,IN0564810,5,"2,721.01",Staffline Group,CR416827,Domestic Refuse,Hired Staff,100
http://statistics.data.gov.uk/id/local-authority/12UE,Huntingdonshire District Council,28/12/2016,201314,IN0564811,5,"3,551.42",Staffline Group,CR416827,Domestic Refuse,Hired Staff,100
http://statistics.data.gov.uk/id/local-authority/12UE,Huntingdonshire District Council,01/12/2016,199164,BC00230,5,"7,800.00",Barry Cornelius Associates,CR422523,Financial Services Mus,Hired Staff,100
http://statistics.data.gov.uk/id/local-authority/12UE,Huntingdonshire District Council,01/12/2016,199164,BC00230,5,"8,100.00",Barry Cornelius Associates,CR422523,Financial Services Mus,Hired Staff,100
http://statistics.data.gov.uk/id/local-authority/12UE,Huntingdonshire District Council,28/12/2016,200852,BC00232,5,"16,830.00",Barry Cornelius Associates,CR422523,Financial Services Mus,Hired Staff,100
http://statistics.data.gov.uk/id/local-authority/12UE,Huntingdonshire District Council,21/12/2016,200058,1007068269,5,"2,070.00",Hays,CR423917,Financial Services Mus,Hired Staff,100
http://statistics.data.gov.uk/id/local-authority/12UE,Huntingdonshire District Council,28/12/2016,200851,1007089121,5,"2,070.00",Hays,CR423917,Financial Services Mus,Hired Staff,100
http://statistics.data.gov.uk/id/local-authority/12UE,Huntingdonshire District Council,08/12/2016,200903,1007110599,5,"2,070.00",Hays,CR423917,Financial Services Mus,Hired Staff,100
http://statistics.data.gov.uk/id/local-authority/12UE,Huntingdonshire District Council,21/12/2016,200866,34213,5,488.88,Meyer Scott Recruitment Limited,CR422369,Financial Services Mus,Hired Staff,100
http://statistics.data.gov.uk/id/local-authority/12UE,Huntingdonshire District Council,21/12/2016,200867,34249,5,480.73,Meyer Scott Recruitment Limited,CR422369,Financial Services Mus,Hired Staff,100
http://statistics.data.gov.uk/id/local-authority/12UE,Huntingdonshire District Council,28/12/2016,201634,34282,5,639.62,Meyer Scott Recruitment Limited,CR422369,Financial Services Mus,Hired Staff,100
http://statistics.data.gov.uk/id/local-authority/12UE,Huntingdonshire District Council,01/12/2016,200220,943307,5,"1,007.40",Morgan Hunt Public Uk Ltd,CR415693,Housing  Benefits Admin,Hired Staff,100
http://statistics.data.gov.uk/id/local-authority/12UE,Huntingdonshire District Council,01/12/2016,200221,943308,5,965.76,Morgan Hunt Public Uk Ltd,CR415693,Housing  Benefits Admin,Hired Staff,100
http://statistics.data.gov.uk/id/local-authority/12UE,Huntingdonshire District Council,08/12/2016,200432,944976,5,"1,021.20",Morgan Hunt Public Uk Ltd,CR415693,Housing  Benefits Admin,Hired Staff,100
http://statistics.data.gov.uk/id/local-authority/12UE,Huntingdonshire District Council,08/12/2016,200433,944977,5,967.98,Morgan Hunt Public Uk Ltd,CR415693,Housing  Benefits Admin,Hired Staff,100
http://statistics.data.gov.uk/id/local-authority/12UE,Huntingdonshire District Council,15/12/2016,201060,946439,5,979.8,Morgan Hunt Public Uk Ltd,CR415693,Housing  Benefits Admin,Hired Staff,100
http://statistics.data.gov.uk/id/local-authority/12UE,Huntingdonshire District Council,15/12/2016,201059,946440,5,942.76,Morgan Hunt Public Uk Ltd,CR415693,Housing  Benefits Admin,Hired Staff,100
http://statistics.data.gov.uk/id/local-authority/12UE,Huntingdonshire District Council,08/12/2016,200859,WN70305269,5,"6,000.00",Capita Resourcing Ltd,CR030165,Imd Shared Service,Hired Staff,100
http://statistics.data.gov.uk/id/local-authority/12UE,Huntingdonshire District Council,08/12/2016,200856,WN70305270,5,"6,000.00",Capita Resourcing Ltd,CR030165,Imd Shared Service,Hired Staff,100
http://statistics.data.gov.uk/id/local-authority/12UE,Huntingdonshire District Council,08/12/2016,200857,WN70305271,5,"3,600.00",Capita Resourcing Ltd,CR030165,Imd Shared Service,Hired Staff,100
http://statistics.data.gov.uk/id/local-authority/12UE,Huntingdonshire District Council,28/12/2016,200854,WN70306543,5,"7,200.00",Capita Resourcing Ltd,CR030165,Imd Shared Service,Hired Staff,100
http://statistics.data.gov.uk/id/local-authority/12UE,Huntingdonshire District Council,28/12/2016,200855,WN70306544,5,"6,600.00",Capita Resourcing Ltd,CR030165,Imd Shared Service,Hired Staff,100
http://statistics.data.gov.uk/id/local-authority/12UE,Huntingdonshire District Council,28/12/2016,200853,WN70306545,5,"5,160.00",Capita Resourcing Ltd,CR030165,Imd Shared Service,Hired Staff,100
http://statistics.data.gov.uk/id/local-authority/12UE,Huntingdonshire District Council,01/12/2016,199652,123149,5,"1,350.00",It Talent Solutions Ltd,CR482676,Imd Shared Service,Hired Staff,100
http://statistics.data.gov.uk/id/local-authority/12UE,Huntingdonshire District Council,01/12/2016,199649,123174,5,"3,600.00",It Talent Solutions Ltd,CR482676,Imd Shared Service,Hired Staff,100
http://statistics.data.gov.uk/id/local-authority/12UE,Huntingdonshire District Council,01/12/2016,199650,123175,5,"3,150.00",It Talent Solutions Ltd,CR482676,Imd Shared Service,Hired Staff,100
http://statistics.data.gov.uk/id/local-authority/12UE,Huntingdonshire District Council,01/12/2016,199653,123206,5,976.8,It Talent Solutions Ltd,CR482676,Imd Shared Service,Hired Staff,100
http://statistics.data.gov.uk/id/local-authority/12UE,Huntingdonshire District Council,01/12/2016,199651,123217,5,"2,640.00",It Talent Solutions Ltd,CR482676,Imd Shared Service,Hired Staff,100
http://statistics.data.gov.uk/id/local-authority/12UE,Huntingdonshire District Council,15/12/2016,200007,123240,5,"1,350.00",It Talent Solutions Ltd,CR482676,Imd Shared Service,Hired Staff,100
http://statistics.data.gov.uk/id/local-authority/12UE,Huntingdonshire District Council,15/12/2016,200006,123302,5,976.8,It Talent Solutions Ltd,CR482676,Imd Shared Service,Hired Staff,100
http://statistics.data.gov.uk/id/local-authority/12UE,Huntingdonshire District Council,01/12/2016,200374,123315,5,"1,350.00",It Talent Solutions Ltd,CR482676,Imd Shared Service,Hired Staff,100
http://statistics.data.gov.uk/id/local-authority/12UE,Huntingdonshire District Council,01/12/2016,200371,123322,5,976.8,It Talent Solutions Ltd,CR482676,Imd Shared Service,Hired Staff,100
http://statistics.data.gov.uk/id/local-authority/12UE,Huntingdonshire District Council,01/12/2016,200373,123336,5,"3,150.00",It Talent Solutions Ltd,CR482676,Imd Shared Service,Hired Staff,100
http://statistics.data.gov.uk/id/local-authority/12UE,Huntingdonshire District Council,01/12/2016,200372,123380,5,"2,640.00",It Talent Solutions Ltd,CR482676,Imd Shared Service,Hired Staff,100
http://statistics.data.gov.uk/id/local-authority/12UE,Huntingdonshire District Council,08/12/2016,200756,123421,5,"1,350.00",It Talent Solutions Ltd,CR482676,Imd Shared Service,Hired Staff,100
http://statistics.data.gov.uk/id/local-authority/12UE,Huntingdonshire District Council,08/12/2016,200753,123434,5,"2,640.00",It Talent Solutions Ltd,CR482676,Imd Shared Service,Hired Staff,100
http://statistics.data.gov.uk/id/local-authority/12UE,Huntingdonshire District Council,08/12/2016,200757,123439,5,976.8,It Talent Solutions Ltd,CR482676,Imd Shared Service,Hired Staff,100
http://statistics.data.gov.uk/id/local-authority/12UE,Huntingdonshire District Council,08/12/2016,200754,123456,5,"10,800.00",It Talent Solutions Ltd,CR482676,Imd Shared Service,Hired Staff,100
http://statistics.data.gov.uk/id/local-authority/12UE,Huntingdonshire District Council,08/12/2016,200755,123459,5,"3,150.00",It Talent Solutions Ltd,CR482676,Imd Shared Service,Hired Staff,100
http://statistics.data.gov.uk/id/local-authority/12UE,Huntingdonshire District Council,21/12/2016,201479,123494,5,"1,350.00",It Talent Solutions Ltd,CR482676,Imd Shared Service,Hired Staff,100
http://statistics.data.gov.uk/id/local-authority/12UE,Huntingdonshire District Council,21/12/2016,201475,123504,5,"3,150.00",It Talent Solutions Ltd,CR482676,Imd Shared Service,Hired Staff,100
http://statistics.data.gov.uk/id/local-authority/12UE,Huntingdonshire District Council,21/12/2016,201474,123506,5,"2,880.00",It Talent Solutions Ltd,CR482676,Imd Shared Service,Hired Staff,100
http://statistics.data.gov.uk/id/local-authority/12UE,Huntingdonshire District Council,21/12/2016,201476,123535,5,"2,640.00",It Talent Solutions Ltd,CR482676,Imd Shared Service,Hired Staff,100
http://statistics.data.gov.uk/id/local-authority/12UE,Huntingdonshire District Council,21/12/2016,201337,123568,5,"2,640.00",It Talent Solutions Ltd,CR482676,Imd Shared Service,Hired Staff,100
http://statistics.data.gov.uk/id/local-authority/12UE,Huntingdonshire District Council,21/12/2016,201336,123633,5,"3,150.00",It Talent Solutions Ltd,CR482676,Imd Shared Service,Hired Staff,100
http://statistics.data.gov.uk/id/local-authority/12UE,Huntingdonshire District Council,21/12/2016,201335,123634,5,"3,240.00",It Talent Solutions Ltd,CR482676,Imd Shared Service,Hired Staff,100
http://statistics.data.gov.uk/id/local-authority/12UE,Huntingdonshire District Council,01/12/2016,199646,R017926,5,614.4,Premier It Recruitment Ltd,CR454029,Imd Shared Service,Hired Staff,100
http://statistics.data.gov.uk/id/local-authority/12UE,Huntingdonshire District Council,08/12/2016,200765,R018260,5,"1,140.00",Premier It Recruitment Ltd,CR454029,Imd Shared Service,Hired Staff,100
http://statistics.data.gov.uk/id/local-authority/12UE,Huntingdonshire District Council,08/12/2016,200768,R018261,5,"2,850.00",Premier It Recruitment Ltd,CR454029,Imd Shared Service,Hired Staff,100
http://statistics.data.gov.uk/id/local-authority/12UE,Huntingdonshire District Council,08/12/2016,200767,R018262,5,"2,850.00",Premier It Recruitment Ltd,CR454029,Imd Shared Service,Hired Staff,100
http://statistics.data.gov.uk/id/local-authority/12UE,Huntingdonshire District Council,21/12/2016,201344,R018300,5,"2,850.00",Premier It Recruitment Ltd,CR454029,Imd Shared Service,Hired Staff,100
http://statistics.data.gov.uk/id/local-authority/12UE,Huntingdonshire District Council,01/12/2016,199283,15848,5,"3,720.00",Vivid Resourcing Limited,CR423536,Imd Shared Service,Hired Staff,100
http://statistics.data.gov.uk/id/local-authority/12UE,Huntingdonshire District Council,21/12/2016,201729,15849,5,"3,300.00",Vivid Resourcing Limited,CR423536,Imd Shared Service,Hired Staff,100
http://statistics.data.gov.uk/id/local-authority/12UE,Huntingdonshire District Council,21/12/2016,201728,16038,5,"3,300.00",Vivid Resourcing Limited,CR423536,Imd Shared Service,Hired Staff,100
http://statistics.data.gov.uk/id/local-authority/12UE,Huntingdonshire District Council,15/12/2016,200005,16212,5,"11,160.00",Vivid Resourcing Limited,CR423536,Imd Shared Service,Hired Staff,100
http://statistics.data.gov.uk/id/local-authority/12UE,Huntingdonshire District Council,21/12/2016,200379,16387,5,"6,600.00",Vivid Resourcing Limited,CR423536,Imd Shared Service,Hired Staff,100
http://statistics.data.gov.uk/id/local-authority/12UE,Huntingdonshire District Council,28/12/2016,200758,16622,5,"3,720.00",Vivid Resourcing Limited,CR423536,Imd Shared Service,Hired Staff,100
http://statistics.data.gov.uk/id/local-authority/12UE,Huntingdonshire District Council,01/12/2016,199057,262042,5,487.62,First Recruitment Group Ltd,CR424012,Licences,Hired Staff,100
http://statistics.data.gov.uk/id/local-authority/12UE,Huntingdonshire District Council,15/12/2016,199865,263002,5,466.73,First Recruitment Group Ltd,CR424012,Licences,Hired Staff,100
http://statistics.data.gov.uk/id/local-authority/12UE,Huntingdonshire District Council,01/12/2016,200329,21609,,586.8,Show & Event Security,CR422363,One Leisure St Ives,Hired Staff,100
http://statistics.data.gov.uk/id/local-authority/12UE,Huntingdonshire District Council,15/12/2016,201222,21702,,333.3,Show & Event Security,CR422363,One Leisure St Ives,Hired Staff,100
http://statistics.data.gov.uk/id/local-authority/12UE,Huntingdonshire District Council,01/12/2016,199174,17-Oct-16,5,"2,915.00",Tree Officer Outsourcing Uk Ltd,CR423131,Planning M U'S,Hired Staff,100
http://statistics.data.gov.uk/id/local-authority/12UE,Huntingdonshire District Council,28/12/2016,200671,22-Nov-16,5,"3,080.00",Tree Officer Outsourcing Uk Ltd,CR423131,Planning M U'S,Hired Staff,100
http://statistics.data.gov.uk/id/local-authority/12UE,Huntingdonshire District Council,15/12/2016,201211,1007035556,5,"3,000.00",Hays,CR423917,Property Development And Mgt,Hired Staff,100
http://statistics.data.gov.uk/id/local-authority/12UE,Huntingdonshire District Council,15/12/2016,201205,1007049346,5,"1,656.00",Hays,CR423917,Property Development And Mgt,Hired Staff,100
http://statistics.data.gov.uk/id/local-authority/12UE,Huntingdonshire District Council,01/12/2016,199692,IN0557503,5,"1,325.11",Staffline Group,CR416827,Recycling,Hired Staff,100
http://statistics.data.gov.uk/id/local-authority/12UE,Huntingdonshire District Council,21/12/2016,200444,IN0559368,5,"2,164.92",Staffline Group,CR416827,Recycling,Hired Staff,100
http://statistics.data.gov.uk/id/local-authority/12UE,Huntingdonshire District Council,21/12/2016,200445,IN0561232,5,"2,268.14",Staffline Group,CR416827,Recycling,Hired Staff,100
http://statistics.data.gov.uk/id/local-authority/12UE,Huntingdonshire District Council,21/12/2016,200827,IN0562768,5,"1,660.12",Staffline Group,CR416827,Recycling,Hired Staff,100
http://statistics.data.gov.uk/id/local-authority/12UE,Huntingdonshire District Council,28/12/2016,201316,IN0564809,5,"1,690.33",Staffline Group,CR416827,Recycling,Hired Staff,100
http://statistics.data.gov.uk/id/local-authority/12UE,Huntingdonshire District Council,01/12/2016,199694,IN0557506,5,"1,686.46",Staffline Group,CR416827,Street Cleaning,Hired Staff,100
http://statistics.data.gov.uk/id/local-authority/12UE,Huntingdonshire District Council,08/12/2016,200448,IN0559371,5,"2,002.21",Staffline Group,CR416827,Street Cleaning,Hired Staff,100
http://statistics.data.gov.uk/id/local-authority/12UE,Huntingdonshire District Council,21/12/2016,200449,IN0561235,5,"2,021.53",Staffline Group,CR416827,Street Cleaning,Hired Staff,100
http://statistics.data.gov.uk/id/local-authority/12UE,Huntingdonshire District Council,21/12/2016,200830,IN0562771,5,"1,739.90",Staffline Group,CR416827,Street Cleaning,Hired Staff,100
http://statistics.data.gov.uk/id/local-authority/12UE,Huntingdonshire District Council,28/12/2016,201318,IN0564812,5,"1,895.42",Staffline Group,CR416827,Street Cleaning,Hired Staff,100
http://statistics.data.gov.uk/id/local-authority/12UE,Huntingdonshire District Council,21/12/2016,201731,16/006,5,"1,560.00",Edrm At Work,CR482294,Imd Shared Service,I C T Services,731
http://statistics.data.gov.uk/id/local-authority/12UE,Huntingdonshire District Council,15/12/2016,200752,CCC/SUP/03,5,800,Edrm Systems Ltd,CR416278,Imd Shared Service,I C T Services,731
http://statistics.data.gov.uk/id/local-authority/12UE,Huntingdonshire District Council,01/12/2016,199286,923469-073A,5,631.3,Virgin Media Business/Cpsn,CR455148,Cctv Shared Service,I T Line Rental,248
http://statistics.data.gov.uk/id/local-authority/12UE,Huntingdonshire District Council,28/12/2016,200749,923469-074A,5,631.3,Virgin Media Business/Cpsn,CR455148,Cctv Shared Service,I T Line Rental,248
http://statistics.data.gov.uk/id/local-authority/12UE,Huntingdonshire District Council,08/12/2016,200750,7.43E+14,5,992.95,Virgin Media Business,CR033120,Imd Shared Service,I T Line Rental,248
http://statistics.data.gov.uk/id/local-authority/12UE,Huntingdonshire District Council,28/12/2016,200747,7.43E+14,5,992.95,Virgin Media Business,CR033120,Imd Shared Service,I T Line Rental,248
http://statistics.data.gov.uk/id/local-authority/12UE,Huntingdonshire District Council,01/12/2016,199286,923469-073A,5,"6,523.60",Virgin Media Business/Cpsn,CR455148,Imd Shared Service,I T Line Rental,248
http://statistics.data.gov.uk/id/local-authority/12UE,Huntingdonshire District Council,28/12/2016,200749,923469-074A,5,"6,551.17",Virgin Media Business/Cpsn,CR455148,Imd Shared Service,I T Line Rental,248
http://statistics.data.gov.uk/id/local-authority/12UE,Huntingdonshire District Council,21/12/2016,201330,923469-074B,5,534,Virgin Media Business/Cpsn,CR455148,Imd Shared Service,I T Line Rental,248
http://statistics.data.gov.uk/id/local-authority/12UE,Huntingdonshire District Council,28/12/2016,200769,1654056,5,"1,000.00",Days Contract Hire,CR417030,Grounds Maintenance,Insurance Excess,797
http://statistics.data.gov.uk/id/local-authority/12UE,Huntingdonshire District Council,28/12/2016,201907,4992,,751.68,Lgss Law,CR422022,Central Services M Us,Legal Fees,729
http://statistics.data.gov.uk/id/local-authority/12UE,Huntingdonshire District Council,28/12/2016,201908,4994,,360,Lgss Law,CR422022,Central Services M Us,Legal Fees,729
http://statistics.data.gov.uk/id/local-authority/12UE,Huntingdonshire District Council,28/12/2016,201909,4995,,615.96,Lgss Law,CR422022,Central Services M Us,Legal Fees,729
http://statistics.data.gov.uk/id/local-authority/12UE,Huntingdonshire District Council,28/12/2016,201910,4996,,342,Lgss Law,CR422022,Central Services M Us,Legal Fees,729
http://statistics.data.gov.uk/id/local-authority/12UE,Huntingdonshire District Council,28/12/2016,201912,4998,,504,Lgss Law,CR422022,Central Services M Us,Legal Fees,729
http://statistics.data.gov.uk/id/local-authority/12UE,Huntingdonshire District Council,28/12/2016,201913,4999,,342,Lgss Law,CR422022,Central Services M Us,Legal Fees,729
http://statistics.data.gov.uk/id/local-authority/12UE,Huntingdonshire District Council,28/12/2016,201914,5000,,324,Lgss Law,CR422022,Central Services M Us,Legal Fees,729
http://statistics.data.gov.uk/id/local-authority/12UE,Huntingdonshire District Council,28/12/2016,201916,5002,,504,Lgss Law,CR422022,Central Services M Us,Legal Fees,729
http://statistics.data.gov.uk/id/local-authority/12UE,Huntingdonshire District Council,28/12/2016,201919,5005,,288,Lgss Law,CR422022,Central Services M Us,Legal Fees,729
http://statistics.data.gov.uk/id/local-authority/12UE,Huntingdonshire District Council,28/12/2016,201920,5006,,630,Lgss Law,CR422022,Central Services M Us,Legal Fees,729
http://statistics.data.gov.uk/id/local-authority/12UE,Huntingdonshire District Council,28/12/2016,201922,5008,,281.88,Lgss Law,CR422022,Central Services M Us,Legal Fees,729
http://statistics.data.gov.uk/id/local-authority/12UE,Huntingdonshire District Council,28/12/2016,201923,6350,,793.44,Lgss Law,CR422022,Central Services M Us,Legal Fees,729
http://statistics.data.gov.uk/id/local-authority/12UE,Huntingdonshire District Council,28/12/2016,201930,6361,,288,Lgss Law,CR422022,Central Services M Us,Legal Fees,729
http://statistics.data.gov.uk/id/local-authority/12UE,Huntingdonshire District Council,08/12/2016,200863,1648349,5,"4,259.40",Weightmans,CR455744,Chief Executive & Comt,Legal Fees,729
http://statistics.data.gov.uk/id/local-authority/12UE,Huntingdonshire District Council,08/12/2016,200861,1650258,5,555,Weightmans,CR455744,Chief Executive & Comt,Legal Fees,729
http://statistics.data.gov.uk/id/local-authority/12UE,Huntingdonshire District Council,08/12/2016,200862,1654360,5,"1,410.00",Weightmans,CR455744,Chief Executive & Comt,Legal Fees,729
http://statistics.data.gov.uk/id/local-authority/12UE,Huntingdonshire District Council,08/12/2016,200864,149240H/3/TCO,5,"2,297.40",Weightmans,CR455744,Chief Executive & Comt,Legal Fees,729
http://statistics.data.gov.uk/id/local-authority/12UE,Huntingdonshire District Council,01/12/2016,199489,90221089,5,624,Freeths  Llp,CR480787,Estates Properties Capital,Legal Fees,729
http://statistics.data.gov.uk/id/local-authority/12UE,Huntingdonshire District Council,15/12/2016,200311,T26693,5,"1,171.20",Mogo Uk,CR410378,Licences,Licence Plates,564
http://statistics.data.gov.uk/id/local-authority/12UE,Huntingdonshire District Council,08/12/2016,200691,INV-0036,5,125,Wamo Sports Ltd,CR423559,One Leisure Huntingdon,Licences,730
http://statistics.data.gov.uk/id/local-authority/12UE,Huntingdonshire District Council,08/12/2016,200691,INV-0036,5,62.5,Wamo Sports Ltd,CR423559,One Leisure Ramsey,Licences,730
http://statistics.data.gov.uk/id/local-authority/12UE,Huntingdonshire District Council,08/12/2016,200691,INV-0036,5,62.5,Wamo Sports Ltd,CR423559,One Leisure Sawtry,Licences,730
http://statistics.data.gov.uk/id/local-authority/12UE,Huntingdonshire District Council,28/12/2016,200690,SIV153118,5,297.54,Les Mills Uk,CR025826,One Leisure St Ives,Licences,730
http://statistics.data.gov.uk/id/local-authority/12UE,Huntingdonshire District Council,08/12/2016,200691,INV-0036,5,125,Wamo Sports Ltd,CR423559,One Leisure St Ives,Licences,730
http://statistics.data.gov.uk/id/local-authority/12UE,Huntingdonshire District Council,08/12/2016,200691,INV-0036,5,125,Wamo Sports Ltd,CR423559,One Leisure St Neots,Licences,730
http://statistics.data.gov.uk/id/local-authority/12UE,Huntingdonshire District Council,01/12/2016,198321,65007217,5,618.43,Cambridge Water Plc,CR000172,Street Cleaning,Licences,730
http://statistics.data.gov.uk/id/local-authority/12UE,Huntingdonshire District Council,28/12/2016,201523,101789-1,5,674.4,Newnorth Print Ltd,CR424119,Chief Executive & Comt,Loan Advanced,504
http://statistics.data.gov.uk/id/local-authority/12UE,Huntingdonshire District Council,08/12/2016,200869,1668527,5,450,Weightmans,CR455744,Homelessness Management,Management Charge,733
http://statistics.data.gov.uk/id/local-authority/12UE,Huntingdonshire District Council,21/12/2016,200673,1409865,5,"3,388.16",Akw Medicare Ltd,CR403559,Improvement Grants,Mandatory Grants,801
http://statistics.data.gov.uk/id/local-authority/12UE,Huntingdonshire District Council,21/12/2016,200674,1409875,5,"1,843.61",Akw Medicare Ltd,CR403559,Improvement Grants,Mandatory Grants,801
http://statistics.data.gov.uk/id/local-authority/12UE,Huntingdonshire District Council,01/12/2016,198607,AC0214093,5,"4,936.42",Ashco Building & Maintenance Services Ltd,CR422300,Improvement Grants,Mandatory Grants,801
http://statistics.data.gov.uk/id/local-authority/12UE,Huntingdonshire District Council,01/12/2016,199600,AC0214096,5,"4,852.90",Ashco Building & Maintenance Services Ltd,CR422300,Improvement Grants,Mandatory Grants,801
http://statistics.data.gov.uk/id/local-authority/12UE,Huntingdonshire District Council,08/12/2016,199266,AC0214097,5,"4,423.21",Ashco Building & Maintenance Services Ltd,CR422300,Improvement Grants,Mandatory Grants,801
http://statistics.data.gov.uk/id/local-authority/12UE,Huntingdonshire District Council,01/12/2016,200239,AC0214098,5,"5,342.87",Ashco Building & Maintenance Services Ltd,CR422300,Improvement Grants,Mandatory Grants,801
http://statistics.data.gov.uk/id/local-authority/12UE,Huntingdonshire District Council,08/12/2016,199666,AC0214105,5,"1,656.33",Ashco Building & Maintenance Services Ltd,CR422300,Improvement Grants,Mandatory Grants,801
http://statistics.data.gov.uk/id/local-authority/12UE,Huntingdonshire District Council,21/12/2016,201520,AC0214109,5,"4,218.68",Ashco Building & Maintenance Services Ltd,CR422300,Improvement Grants,Mandatory Grants,801
http://statistics.data.gov.uk/id/local-authority/12UE,Huntingdonshire District Council,21/12/2016,200249,AC0214115,5,"1,796.04",Ashco Building & Maintenance Services Ltd,CR422300,Improvement Grants,Mandatory Grants,801
http://statistics.data.gov.uk/id/local-authority/12UE,Huntingdonshire District Council,21/12/2016,200250,AC0214121,5,"13,726.54",Ashco Building & Maintenance Services Ltd,CR422300,Improvement Grants,Mandatory Grants,801
http://statistics.data.gov.uk/id/local-authority/12UE,Huntingdonshire District Council,15/12/2016,200672,16/11/MO46,5,"1,475.04",Asset Fineline,CR404114,Improvement Grants,Mandatory Grants,801
http://statistics.data.gov.uk/id/local-authority/12UE,Huntingdonshire District Council,01/12/2016,200251,581,5,"5,080.00",B P Morse,CR030128,Improvement Grants,Mandatory Grants,801
http://statistics.data.gov.uk/id/local-authority/12UE,Huntingdonshire District Council,28/12/2016,201595,582,5,"4,390.00",B P Morse,CR030128,Improvement Grants,Mandatory Grants,801
http://statistics.data.gov.uk/id/local-authority/12UE,Huntingdonshire District Council,01/12/2016,199024,528103,5,"6,376.00",Bsg Property Services Ltd,CR089905,Improvement Grants,Mandatory Grants,801
http://statistics.data.gov.uk/id/local-authority/12UE,Huntingdonshire District Council,08/12/2016,200685,S28111,5,"5,568.00",Bsg Property Services Ltd,CR089905,Improvement Grants,Mandatory Grants,801
http://statistics.data.gov.uk/id/local-authority/12UE,Huntingdonshire District Council,01/12/2016,198680,S28179,5,"3,602.00",Bsg Property Services Ltd,CR089905,Improvement Grants,Mandatory Grants,801
http://statistics.data.gov.uk/id/local-authority/12UE,Huntingdonshire District Council,08/12/2016,199590,S28184,5,"10,000.00",Bsg Property Services Ltd,CR089905,Improvement Grants,Mandatory Grants,801
http://statistics.data.gov.uk/id/local-authority/12UE,Huntingdonshire District Council,08/12/2016,199462,S28196,5,"15,258.50",Bsg Property Services Ltd,CR089905,Improvement Grants,Mandatory Grants,801
http://statistics.data.gov.uk/id/local-authority/12UE,Huntingdonshire District Council,08/12/2016,200676,S28462,5,"13,237.15",Bsg Property Services Ltd,CR089905,Improvement Grants,Mandatory Grants,801
http://statistics.data.gov.uk/id/local-authority/12UE,Huntingdonshire District Council,08/12/2016,200924,S28554,5,"12,688.15",Bsg Property Services Ltd,CR089905,Improvement Grants,Mandatory Grants,801
http://statistics.data.gov.uk/id/local-authority/12UE,Huntingdonshire District Council,01/12/2016,200308,453579,5,"7,940.00",Chiltern Invadex (Uk) Ltd,CR423523,Improvement Grants,Mandatory Grants,801
http://statistics.data.gov.uk/id/local-authority/12UE,Huntingdonshire District Council,28/12/2016,201177,25857,5,"2,478.00",Compton Parkinson,CR422082,Improvement Grants,Mandatory Grants,801
http://statistics.data.gov.uk/id/local-authority/12UE,Huntingdonshire District Council,01/12/2016,198765,88088,5,"2,174.00",Ems Lifts Ltd,CR479724,Improvement Grants,Mandatory Grants,801
http://statistics.data.gov.uk/id/local-authority/12UE,Huntingdonshire District Council,01/12/2016,198143,60770,5,"4,300.00",Gaswise,CR423458,Improvement Grants,Mandatory Grants,801
http://statistics.data.gov.uk/id/local-authority/12UE,Huntingdonshire District Council,01/12/2016,198144,60771,5,"4,113.00",Gaswise,CR423458,Improvement Grants,Mandatory Grants,801
http://statistics.data.gov.uk/id/local-authority/12UE,Huntingdonshire District Council,15/12/2016,201311,60772,5,"3,297.00",Gaswise,CR423458,Improvement Grants,Mandatory Grants,801
http://statistics.data.gov.uk/id/local-authority/12UE,Huntingdonshire District Council,01/12/2016,200293,SIN476085,4,"6,299.28",Handicare,CR481107,Improvement Grants,Mandatory Grants,801
http://statistics.data.gov.uk/id/local-authority/12UE,Huntingdonshire District Council,01/12/2016,200292,SIN476090,4,"2,954.07",Handicare,CR481107,Improvement Grants,Mandatory Grants,801
http://statistics.data.gov.uk/id/local-authority/12UE,Huntingdonshire District Council,01/12/2016,199926,1439,5,"6,812.00",Hd Property Services,CR422148,Improvement Grants,Mandatory Grants,801
http://statistics.data.gov.uk/id/local-authority/12UE,Huntingdonshire District Council,21/12/2016,197146,J&D006399,5,"3,805.00",J & D Mobility Services Ltd,CR422589,Improvement Grants,Mandatory Grants,801
http://statistics.data.gov.uk/id/local-authority/12UE,Huntingdonshire District Council,15/12/2016,201306,J&D006579,5,"5,102.01",J & D Mobility Services Ltd,CR422589,Improvement Grants,Mandatory Grants,801
http://statistics.data.gov.uk/id/local-authority/12UE,Huntingdonshire District Council,28/12/2016,201596,2416,5,"4,378.84",Jlc Automation Services,CR455474,Improvement Grants,Mandatory Grants,801
http://statistics.data.gov.uk/id/local-authority/12UE,Huntingdonshire District Council,21/12/2016,201521,1099,,"5,055.00",Mr &Mrs K Page,CR413316,Improvement Grants,Mandatory Grants,801
http://statistics.data.gov.uk/id/local-authority/12UE,Huntingdonshire District Council,01/12/2016,196965,6201,5,"4,767.00",Priory Buildings (St Neots) Ltd,CR410900,Improvement Grants,Mandatory Grants,801
http://statistics.data.gov.uk/id/local-authority/12UE,Huntingdonshire District Council,15/12/2016,200914,1352B,5,"5,641.00",REDACTED PERSONAL DATA,CR424033,Improvement Grants,Mandatory Grants,801
http://statistics.data.gov.uk/id/local-authority/12UE,Huntingdonshire District Council,08/12/2016,199910,INV000076,5,"18,000.00",Squires & Son Ltd,CR478185,Improvement Grants,Mandatory Grants,801
http://statistics.data.gov.uk/id/local-authority/12UE,Huntingdonshire District Council,08/12/2016,200455,TBA,5,"2,405.00",Squires & Son Ltd,CR478185,Improvement Grants,Mandatory Grants,801
http://statistics.data.gov.uk/id/local-authority/12UE,Huntingdonshire District Council,01/12/2016,200324,TBA 18/10/16,5,"4,850.00",Squires & Son Ltd,CR478185,Improvement Grants,Mandatory Grants,801
http://statistics.data.gov.uk/id/local-authority/12UE,Huntingdonshire District Council,28/12/2016,201178,S085053365,5,"2,679.00",Stannah Ltd Ref(20hu025),CR000759,Improvement Grants,Mandatory Grants,801
http://statistics.data.gov.uk/id/local-authority/12UE,Huntingdonshire District Council,28/12/2016,201518,SO85052917,5,"2,688.00",Stannah Ltd Ref(20hu025),CR000759,Improvement Grants,Mandatory Grants,801
http://statistics.data.gov.uk/id/local-authority/12UE,Huntingdonshire District Council,15/12/2016,201096,521,5,"12,000.00",Steve Hall Carpentry & Building Services,CR424115,Improvement Grants,Mandatory Grants,801
http://statistics.data.gov.uk/id/local-authority/12UE,Huntingdonshire District Council,15/12/2016,201097,522,5,"2,000.00",Steve Hall Carpentry & Building Services,CR424115,Improvement Grants,Mandatory Grants,801
http://statistics.data.gov.uk/id/local-authority/12UE,Huntingdonshire District Council,01/12/2016,200238,376,7,"4,120.00",Wayne Bingham,CR405796,Improvement Grants,Mandatory Grants,801
http://statistics.data.gov.uk/id/local-authority/12UE,Huntingdonshire District Council,08/12/2016,199568,378,7,"11,844.00",Wayne Bingham,CR405796,Improvement Grants,Mandatory Grants,801
http://statistics.data.gov.uk/id/local-authority/12UE,Huntingdonshire District Council,21/12/2016,200601,380,7,"4,535.00",Wayne Bingham,CR405796,Improvement Grants,Mandatory Grants,801
http://statistics.data.gov.uk/id/local-authority/12UE,Huntingdonshire District Council,28/12/2016,201616,188663,5,301.62,Arthur Ibbett Ltd,CR000430,Countryside,Materials,550
http://statistics.data.gov.uk/id/local-authority/12UE,Huntingdonshire District Council,08/12/2016,200818,2102838941,5,38.27,Booker Cash And Carry,CR027611,Countryside,Materials,550
http://statistics.data.gov.uk/id/local-authority/12UE,Huntingdonshire District Council,21/12/2016,201543,2102865719,5,58.69,Booker Cash And Carry,CR027611,Countryside,Materials,550
http://statistics.data.gov.uk/id/local-authority/12UE,Huntingdonshire District Council,15/12/2016,201157,3259,5,694.98,Dino Grip,CR424104,Countryside,Materials,550
http://statistics.data.gov.uk/id/local-authority/12UE,Huntingdonshire District Council,15/12/2016,200392,161694,5,"1,074.16",Huntingdon Timber Supplies,CR482513,Countryside,Materials,550
http://statistics.data.gov.uk/id/local-authority/12UE,Huntingdonshire District Council,28/12/2016,201614,162491,5,"2,339.40",Huntingdon Timber Supplies,CR482513,Countryside,Materials,550
http://statistics.data.gov.uk/id/local-authority/12UE,Huntingdonshire District Council,01/12/2016,200011,3389,5,603.2,The Willow Bank,CR424092,Countryside,Materials,550
http://statistics.data.gov.uk/id/local-authority/12UE,Huntingdonshire District Council,01/12/2016,199071,2697501,5,278.41,A C Commercials,CR000141,Fleet Management,Materials,550
http://statistics.data.gov.uk/id/local-authority/12UE,Huntingdonshire District Council,21/12/2016,200891,SN2540607,5,381.6,Berendsen,CR478298,Fleet Management,Materials,550
http://statistics.data.gov.uk/id/local-authority/12UE,Huntingdonshire District Council,01/12/2016,199891,3038534818,5,453.72,Boc,CR027641,Fleet Management,Materials,550
http://statistics.data.gov.uk/id/local-authority/12UE,Huntingdonshire District Council,01/12/2016,199946,37581,5,341.26,Trinity Engineering & Component Supplies Ltd,CR455479,Fleet Management,Materials,550
http://statistics.data.gov.uk/id/local-authority/12UE,Huntingdonshire District Council,01/12/2016,199947,37582,5,298.25,Trinity Engineering & Component Supplies Ltd,CR455479,Fleet Management,Materials,550
http://statistics.data.gov.uk/id/local-authority/12UE,Huntingdonshire District Council,28/12/2016,201309,37651,5,541.87,Trinity Engineering & Component Supplies Ltd,CR455479,Fleet Management,Materials,550
http://statistics.data.gov.uk/id/local-authority/12UE,Huntingdonshire District Council,28/12/2016,201310,37652,5,551.9,Trinity Engineering & Component Supplies Ltd,CR455479,Fleet Management,Materials,550
http://statistics.data.gov.uk/id/local-authority/12UE,Huntingdonshire District Council,08/12/2016,199629,EI572071,5,846.37,United Eco Services Ltd,CR477773,Fleet Management,Materials,550
http://statistics.data.gov.uk/id/local-authority/12UE,Huntingdonshire District Council,28/12/2016,200876,RSIN0202958,5,900,Rigby Taylor Ltd,CR001345,Grounds Maintenance,Materials,550
http://statistics.data.gov.uk/id/local-authority/12UE,Huntingdonshire District Council,01/12/2016,199695,9150 AIC759,5,286.91,Travis Perkins Trading Co Ltd,CR032007,Grounds Maintenance,Materials,550
http://statistics.data.gov.uk/id/local-authority/12UE,Huntingdonshire District Council,08/12/2016,200069,INV065668,5,159.09,Slush Puppie Ltd,CR455958,One Leisure Huntingdon,Materials,550
http://statistics.data.gov.uk/id/local-authority/12UE,Huntingdonshire District Council,08/12/2016,199662,2102826532,5,59.88,Booker Cash And Carry,CR027611,One Leisure St Ives,Materials,550
http://statistics.data.gov.uk/id/local-authority/12UE,Huntingdonshire District Council,08/12/2016,200718,2102839392,5,46.12,Booker Cash And Carry,CR027611,One Leisure St Ives,Materials,550
http://statistics.data.gov.uk/id/local-authority/12UE,Huntingdonshire District Council,15/12/2016,200045,2102840760,5,77.98,Booker Cash And Carry,CR027611,One Leisure St Ives,Materials,550
http://statistics.data.gov.uk/id/local-authority/12UE,Huntingdonshire District Council,28/12/2016,201472,2102867879,5,258.23,Booker Cash And Carry,CR027611,One Leisure St Ives,Materials,550
http://statistics.data.gov.uk/id/local-authority/12UE,Huntingdonshire District Council,21/12/2016,199883,4251703,1,85.79,Espo,CR006566,One Leisure St Ives,Materials,550
http://statistics.data.gov.uk/id/local-authority/12UE,Huntingdonshire District Council,21/12/2016,200223,INV066711,5,126.32,Slush Puppie Ltd,CR455958,One Leisure St Ives,Materials,550
http://statistics.data.gov.uk/id/local-authority/12UE,Huntingdonshire District Council,15/12/2016,201168,261288,5,36.49,South Lincs Food Service,CR033415,One Leisure St Ives,Materials,550
http://statistics.data.gov.uk/id/local-authority/12UE,Huntingdonshire District Council,21/12/2016,200720,285882,5,21.61,Westminster Foodservice,CR455156,One Leisure St Ives,Materials,550
http://statistics.data.gov.uk/id/local-authority/12UE,Huntingdonshire District Council,28/12/2016,200621,1269917,5,285.8,Cmuk Visual Safety Ltd,CR405024,One Leisure St Neots,Materials,550
http://statistics.data.gov.uk/id/local-authority/12UE,Huntingdonshire District Council,21/12/2016,200616,INV066537,5,159.1,Slush Puppie Ltd,CR455958,One Leisure St Neots,Materials,550
http://statistics.data.gov.uk/id/local-authority/12UE,Huntingdonshire District Council,15/12/2016,199605,5688,5,"3,007.40",Groundwork Hertfordshire,CR422299,Parks & Open Spaces,Materials,550
http://statistics.data.gov.uk/id/local-authority/12UE,Huntingdonshire District Council,15/12/2016,199832,92503175,5,301.2,Speedo International Limited,CR41427,One Leisure Sawtry,Materials For Resale,570
http://statistics.data.gov.uk/id/local-authority/12UE,Huntingdonshire District Council,28/12/2016,200624,92533905,5,675.91,Speedo International Limited,CR41427,One Leisure St Neots,Materials For Resale,570
http://statistics.data.gov.uk/id/local-authority/12UE,Huntingdonshire District Council,08/12/2016,199257,100118,5,250,Cambridge Consultancy In Counselling,CR455108,Human Resources,Medical Fees,734
http://statistics.data.gov.uk/id/local-authority/12UE,Huntingdonshire District Council,21/12/2016,200613,77873,5,970.8,Gladstone Mrm,CR405717,One Leisure Corporate Mgt,Network Hardware,205
http://statistics.data.gov.uk/id/local-authority/12UE,Huntingdonshire District Council,28/12/2016,200657,40259,5,"2,365.16",Communications Solutions Uk Ltd,COMMUNIC,Call Centre,Other I T Hardware,203
http://statistics.data.gov.uk/id/local-authority/12UE,Huntingdonshire District Council,01/12/2016,199281,SINV00098276,5,350.5,Bist,CR422733,Imd Shared Service,Other I T Hardware,203
http://statistics.data.gov.uk/id/local-authority/12UE,Huntingdonshire District Council,21/12/2016,200406,SINV00099284,5,"1,479.96",Bist,CR422733,Imd Shared Service,Other I T Hardware,203
http://statistics.data.gov.uk/id/local-authority/12UE,Huntingdonshire District Council,08/12/2016,200033,6691,5,-995.42,Galtec Solutions Ltd,CR423396,Imd Shared Service,Other I T Hardware,203
http://statistics.data.gov.uk/id/local-authority/12UE,Huntingdonshire District Council,08/12/2016,200031,098763/102250,5,995.42,Galtec Solutions Ltd,CR423396,Imd Shared Service,Other I T Hardware,203
http://statistics.data.gov.uk/id/local-authority/12UE,Huntingdonshire District Council,21/12/2016,200405,100438/104049,5,"8,633.88",Galtec Solutions Ltd,CR423396,Imd Shared Service,Other I T Hardware,203
http://statistics.data.gov.uk/id/local-authority/12UE,Huntingdonshire District Council,21/12/2016,200402,100530/104136,5,434.52,Galtec Solutions Ltd,CR423396,Imd Shared Service,Other I T Hardware,203
http://statistics.data.gov.uk/id/local-authority/12UE,Huntingdonshire District Council,28/12/2016,200781,1029151,5,"17,042.40",Q-Matic Uk Ltd,CR417152,Imd Shared Service,Other I T Hardware,203
http://statistics.data.gov.uk/id/local-authority/12UE,Huntingdonshire District Council,01/12/2016,199279,428080,,928.14,Storm Technologies,CR480909,Imd Shared Service,Other I T Hardware,203
http://statistics.data.gov.uk/id/local-authority/12UE,Huntingdonshire District Council,08/12/2016,200035,429512,,119.28,Storm Technologies,CR480909,Imd Shared Service,Other I T Hardware,203
http://statistics.data.gov.uk/id/local-authority/12UE,Huntingdonshire District Council,08/12/2016,200035,429512,,"1,164.00",Storm Technologies,CR480909,Imd Shared Service,Other I T Hardware,203
http://statistics.data.gov.uk/id/local-authority/12UE,Huntingdonshire District Council,21/12/2016,200380,432295,,634.08,Storm Technologies,CR480909,Imd Shared Service,Other I T Hardware,203
http://statistics.data.gov.uk/id/local-authority/12UE,Huntingdonshire District Council,21/12/2016,200407,432619,,928.14,Storm Technologies,CR480909,Imd Shared Service,Other I T Hardware,203
http://statistics.data.gov.uk/id/local-authority/12UE,Huntingdonshire District Council,21/12/2016,200382,432620,,642.84,Storm Technologies,CR480909,Imd Shared Service,Other I T Hardware,203
http://statistics.data.gov.uk/id/local-authority/12UE,Huntingdonshire District Council,28/12/2016,200784,433934,,"1,565.16",Storm Technologies,CR480909,Imd Shared Service,Other I T Hardware,203
http://statistics.data.gov.uk/id/local-authority/12UE,Huntingdonshire District Council,28/12/2016,201280,434236,,928.14,Storm Technologies,CR480909,Imd Shared Service,Other I T Hardware,203
http://statistics.data.gov.uk/id/local-authority/12UE,Huntingdonshire District Council,08/12/2016,199644,3131179,5,258,Insight Direct Uk Ltd,CR000242,One Leisure Corporate Mgt,Other I T Hardware,203
http://statistics.data.gov.uk/id/local-authority/12UE,Huntingdonshire District Council,28/12/2016,201285,1127960111,5,405.19,Konica Minolta,CR478866,One Leisure Corporate Mgt,Other I T Hardware,203
http://statistics.data.gov.uk/id/local-authority/12UE,Huntingdonshire District Council,08/12/2016,199265,6330080,5,70.13,Antalis Ltd,CR479468,Document Centre,Paper,562
http://statistics.data.gov.uk/id/local-authority/12UE,Huntingdonshire District Council,08/12/2016,199265,6330080,5,140.16,Antalis Ltd,CR479468,Document Centre,Paper,562
http://statistics.data.gov.uk/id/local-authority/12UE,Huntingdonshire District Council,08/12/2016,199265,6330080,5,520.8,Antalis Ltd,CR479468,Document Centre,Paper,562
http://statistics.data.gov.uk/id/local-authority/12UE,Huntingdonshire District Council,15/12/2016,200641,6365063,5,191.7,Antalis Ltd,CR479468,Document Centre,Paper,562
http://statistics.data.gov.uk/id/local-authority/12UE,Huntingdonshire District Council,15/12/2016,200641,6365063,5,118.94,Antalis Ltd,CR479468,Document Centre,Paper,562
http://statistics.data.gov.uk/id/local-authority/12UE,Huntingdonshire District Council,15/12/2016,200641,6365063,5,188.78,Antalis Ltd,CR479468,Document Centre,Paper,562
http://statistics.data.gov.uk/id/local-authority/12UE,Huntingdonshire District Council,15/12/2016,200641,6365063,5,81.22,Antalis Ltd,CR479468,Document Centre,Paper,562
http://statistics.data.gov.uk/id/local-authority/12UE,Huntingdonshire District Council,15/12/2016,200641,6365063,5,64.92,Antalis Ltd,CR479468,Document Centre,Paper,562
http://statistics.data.gov.uk/id/local-authority/12UE,Huntingdonshire District Council,15/12/2016,200641,6365063,5,34.8,Antalis Ltd,CR479468,Document Centre,Paper,562
http://statistics.data.gov.uk/id/local-authority/12UE,Huntingdonshire District Council,21/12/2016,200669,6372959,5,37,Antalis Ltd,CR479468,Document Centre,Paper,562
http://statistics.data.gov.uk/id/local-authority/12UE,Huntingdonshire District Council,21/12/2016,200669,6372959,5,109.26,Antalis Ltd,CR479468,Document Centre,Paper,562
http://statistics.data.gov.uk/id/local-authority/12UE,Huntingdonshire District Council,21/12/2016,200669,6372959,5,34.8,Antalis Ltd,CR479468,Document Centre,Paper,562
http://statistics.data.gov.uk/id/local-authority/12UE,Huntingdonshire District Council,21/12/2016,200669,6372959,5,34.8,Antalis Ltd,CR479468,Document Centre,Paper,562
http://statistics.data.gov.uk/id/local-authority/12UE,Huntingdonshire District Council,21/12/2016,200669,6372959,5,68.16,Antalis Ltd,CR479468,Document Centre,Paper,562
http://statistics.data.gov.uk/id/local-authority/12UE,Huntingdonshire District Council,28/12/2016,201065,324773,5,"3,465.60",First In Service Ltd,CR422285,E F H And Depots,Plant & Equipment Maintenance,380
http://statistics.data.gov.uk/id/local-authority/12UE,Huntingdonshire District Council,21/12/2016,201493,14707,5,633.6,Green Zone Surveys Uk Ltd,CR423990,E F H And Depots,Plant & Equipment Maintenance,380
http://statistics.data.gov.uk/id/local-authority/12UE,Huntingdonshire District Council,21/12/2016,201493,14707,5,"1,377.60",Green Zone Surveys Uk Ltd,CR423990,One Leisure Huntingdon,Plant & Equipment Maintenance,380
http://statistics.data.gov.uk/id/local-authority/12UE,Huntingdonshire District Council,21/12/2016,201493,14707,5,504,Green Zone Surveys Uk Ltd,CR423990,One Leisure Ramsey,Plant & Equipment Maintenance,380
http://statistics.data.gov.uk/id/local-authority/12UE,Huntingdonshire District Council,21/12/2016,201493,14707,5,633.6,Green Zone Surveys Uk Ltd,CR423990,One Leisure Sawtry,Plant & Equipment Maintenance,380
http://statistics.data.gov.uk/id/local-authority/12UE,Huntingdonshire District Council,21/12/2016,201493,14707,5,780,Green Zone Surveys Uk Ltd,CR423990,One Leisure St Ives,Plant & Equipment Maintenance,380
http://statistics.data.gov.uk/id/local-authority/12UE,Huntingdonshire District Council,21/12/2016,201493,14707,5,813.6,Green Zone Surveys Uk Ltd,CR423990,One Leisure St Neots,Plant & Equipment Maintenance,380
http://statistics.data.gov.uk/id/local-authority/12UE,Huntingdonshire District Council,28/12/2016,201065,324773,5,"3,465.60",First In Service Ltd,CR422285,Pathfinder House Site,Plant & Equipment Maintenance,380
http://statistics.data.gov.uk/id/local-authority/12UE,Huntingdonshire District Council,21/12/2016,201493,14707,5,"1,713.60",Green Zone Surveys Uk Ltd,CR423990,Pathfinder House Site,Plant & Equipment Maintenance,380
http://statistics.data.gov.uk/id/local-authority/12UE,Huntingdonshire District Council,21/12/2016,200315,427021,5,"1,119.68",Heasell Electromechanical Services Ltd,CR422407,Pathfinder House Site,Plant & Equipment Maintenance,380
http://statistics.data.gov.uk/id/local-authority/12UE,Huntingdonshire District Council,01/12/2016,199630,W1516,7,"10,014.98",Peter J Ward,CR404318,Grounds Maintenance,Plants And Seeds,556
http://statistics.data.gov.uk/id/local-authority/12UE,Huntingdonshire District Council,01/12/2016,198953,47437,5,"1,024.80",Hags-Smp Ltd,CR455681,Parks & Open Spaces,Playground Equipment,360
http://statistics.data.gov.uk/id/local-authority/12UE,Huntingdonshire District Council,01/12/2016,200254,CHES270,5,"3,500.00",Hampton/Chesmetalwork,CR453817,Parks & Open Spaces,Playground Equipment,360
http://statistics.data.gov.uk/id/local-authority/12UE,Huntingdonshire District Council,01/12/2016,199937,28490/5106,5,"2,357.40",J Breheny Civil Engineering Ltd,CR000314,Parks & Open Spaces,Playground Equipment,360
http://statistics.data.gov.uk/id/local-authority/12UE,Huntingdonshire District Council,01/12/2016,199208,446,5,"1,434.00",King Ramps Ltd,CR423414,Parks & Open Spaces,Playground Equipment,360
http://statistics.data.gov.uk/id/local-authority/12UE,Huntingdonshire District Council,28/12/2016,201627,26566,5,"2,328.00",Playsafety Ltd,CR479523,Parks & Open Spaces,Playground Equipment,360
http://statistics.data.gov.uk/id/local-authority/12UE,Huntingdonshire District Council,05/12/2016,198005,CREDIT REF,5,-89.39,Whistl Uk Ltd,CR479965,Call Centre,Postage,231
http://statistics.data.gov.uk/id/local-authority/12UE,Huntingdonshire District Council,01/12/2016,199267,IN16PS16006273,5,398.06,Royal Mail,CR027083,Council Tax,Postage,231
http://statistics.data.gov.uk/id/local-authority/12UE,Huntingdonshire District Council,05/12/2016,198009,CONTRA IN16PS16,5,-587.7,Whistl Uk Ltd,CR479965,Council Tax,Postage,231
http://statistics.data.gov.uk/id/local-authority/12UE,Huntingdonshire District Council,05/12/2016,198005,CREDIT REF,5,"-2,138.60",Whistl Uk Ltd,CR479965,Council Tax,Postage,231
http://statistics.data.gov.uk/id/local-authority/12UE,Huntingdonshire District Council,05/12/2016,197379,IN16PS16005445,5,"2,814.02",Whistl Uk Ltd,CR479965,Council Tax,Postage,231
http://statistics.data.gov.uk/id/local-authority/12UE,Huntingdonshire District Council,05/12/2016,198753,IN16PS16005445,5,"-2,814.02",Whistl Uk Ltd,CR479965,Council Tax,Postage,231
http://statistics.data.gov.uk/id/local-authority/12UE,Huntingdonshire District Council,05/12/2016,197380,IN16PS16005574,5,384.02,Whistl Uk Ltd,CR479965,Council Tax,Postage,231
http://statistics.data.gov.uk/id/local-authority/12UE,Huntingdonshire District Council,05/12/2016,198752,IN16PS16005574.,5,-384.02,Whistl Uk Ltd,CR479965,Council Tax,Postage,231
http://statistics.data.gov.uk/id/local-authority/12UE,Huntingdonshire District Council,15/12/2016,201127,IN16PS16006273,5,398.06,Whistl Uk Ltd,CR424061,Council Tax,Postage,231
http://statistics.data.gov.uk/id/local-authority/12UE,Huntingdonshire District Council,21/12/2016,200667,IN16PS16006688,5,"2,634.40",Whistl Uk Ltd,CR424061,Council Tax,Postage,231
http://statistics.data.gov.uk/id/local-authority/12UE,Huntingdonshire District Council,01/12/2016,199268,9053262218,5,855.73,Royal Mail,CR027083,Document Centre,Postage,231
http://statistics.data.gov.uk/id/local-authority/12UE,Huntingdonshire District Council,21/12/2016,200634,9053345084,5,"1,379.76",Royal Mail,CR027083,Document Centre,Postage,231
http://statistics.data.gov.uk/id/local-authority/12UE,Huntingdonshire District Council,21/12/2016,200633,9053392279,5,322.39,Royal Mail,CR027083,Document Centre,Postage,231
http://statistics.data.gov.uk/id/local-authority/12UE,Huntingdonshire District Council,01/12/2016,199267,IN16PS16006273,5,"1,094.77",Royal Mail,CR027083,Document Centre,Postage,231
http://statistics.data.gov.uk/id/local-authority/12UE,Huntingdonshire District Council,05/12/2016,198009,CONTRA IN16PS16,5,"-1,167.08",Whistl Uk Ltd,CR479965,Document Centre,Postage,231
http://statistics.data.gov.uk/id/local-authority/12UE,Huntingdonshire District Council,05/12/2016,198005,CREDIT REF,5,"-1,285.23",Whistl Uk Ltd,CR479965,Document Centre,Postage,231
http://statistics.data.gov.uk/id/local-authority/12UE,Huntingdonshire District Council,05/12/2016,197943,IN16PS16005036,5,"1,151.18",Whistl Uk Ltd,CR479965,Document Centre,Postage,231
http://statistics.data.gov.uk/id/local-authority/12UE,Huntingdonshire District Council,05/12/2016,198754,IN16PS16005036.,5,"-1,151.18",Whistl Uk Ltd,CR479965,Document Centre,Postage,231
http://statistics.data.gov.uk/id/local-authority/12UE,Huntingdonshire District Council,05/12/2016,197379,IN16PS16005445,5,"1,079.75",Whistl Uk Ltd,CR479965,Document Centre,Postage,231
http://statistics.data.gov.uk/id/local-authority/12UE,Huntingdonshire District Council,05/12/2016,198753,IN16PS16005445,5,"-1,079.75",Whistl Uk Ltd,CR479965,Document Centre,Postage,231
http://statistics.data.gov.uk/id/local-authority/12UE,Huntingdonshire District Council,05/12/2016,197380,IN16PS16005574,5,"1,606.27",Whistl Uk Ltd,CR479965,Document Centre,Postage,231
http://statistics.data.gov.uk/id/local-authority/12UE,Huntingdonshire District Council,05/12/2016,198752,IN16PS16005574.,5,"-1,606.27",Whistl Uk Ltd,CR479965,Document Centre,Postage,231
http://statistics.data.gov.uk/id/local-authority/12UE,Huntingdonshire District Council,15/12/2016,201127,IN16PS16006273,5,"1,094.78",Whistl Uk Ltd,CR424061,Document Centre,Postage,231
http://statistics.data.gov.uk/id/local-authority/12UE,Huntingdonshire District Council,08/12/2016,199867,IN16PS16006419,5,"1,462.33",Whistl Uk Ltd,CR424061,Document Centre,Postage,231
http://statistics.data.gov.uk/id/local-authority/12UE,Huntingdonshire District Council,15/12/2016,199868,IN16PS16006523,5,"1,092.29",Whistl Uk Ltd,CR424061,Document Centre,Postage,231
http://statistics.data.gov.uk/id/local-authority/12UE,Huntingdonshire District Council,21/12/2016,200667,IN16PS16006688,5,"1,242.66",Whistl Uk Ltd,CR424061,Document Centre,Postage,231
http://statistics.data.gov.uk/id/local-authority/12UE,Huntingdonshire District Council,28/12/2016,201103,IN16PS16006815,5,"1,134.03",Whistl Uk Ltd,CR424061,Document Centre,Postage,231
http://statistics.data.gov.uk/id/local-authority/12UE,Huntingdonshire District Council,21/12/2016,200633,9053392279,5,15.8,Royal Mail,CR027083,Domestic Refuse,Postage,231
http://statistics.data.gov.uk/id/local-authority/12UE,Huntingdonshire District Council,05/12/2016,197379,IN16PS16005445,5,261.48,Whistl Uk Ltd,CR479965,Domestic Refuse,Postage,231
http://statistics.data.gov.uk/id/local-authority/12UE,Huntingdonshire District Council,05/12/2016,198753,IN16PS16005445,5,-261.48,Whistl Uk Ltd,CR479965,Domestic Refuse,Postage,231
http://statistics.data.gov.uk/id/local-authority/12UE,Huntingdonshire District Council,28/12/2016,201103,IN16PS16006815,5,111.11,Whistl Uk Ltd,CR424061,Domestic Refuse,Postage,231
http://statistics.data.gov.uk/id/local-authority/12UE,Huntingdonshire District Council,21/12/2016,200634,9053345084,5,221.56,Royal Mail,CR027083,Elections,Postage,231
http://statistics.data.gov.uk/id/local-authority/12UE,Huntingdonshire District Council,01/12/2016,199519,3078,5,"1,607.64",Sci Print Limited,CR416581,Elections,Postage,231
http://statistics.data.gov.uk/id/local-authority/12UE,Huntingdonshire District Council,05/12/2016,198009,CONTRA IN16PS16,5,-27.14,Whistl Uk Ltd,CR479965,Elections,Postage,231
http://statistics.data.gov.uk/id/local-authority/12UE,Huntingdonshire District Council,05/12/2016,197943,IN16PS16005036,5,48.88,Whistl Uk Ltd,CR479965,Elections,Postage,231
http://statistics.data.gov.uk/id/local-authority/12UE,Huntingdonshire District Council,05/12/2016,198754,IN16PS16005036.,5,-48.88,Whistl Uk Ltd,CR479965,Elections,Postage,231
http://statistics.data.gov.uk/id/local-authority/12UE,Huntingdonshire District Council,05/12/2016,197379,IN16PS16005445,5,0.42,Whistl Uk Ltd,CR479965,Elections,Postage,231
http://statistics.data.gov.uk/id/local-authority/12UE,Huntingdonshire District Council,05/12/2016,198753,IN16PS16005445,5,-0.42,Whistl Uk Ltd,CR479965,Elections,Postage,231
http://statistics.data.gov.uk/id/local-authority/12UE,Huntingdonshire District Council,01/12/2016,199268,9053262218,5,914.04,Royal Mail,CR027083,Electoral Registration,Postage,231
http://statistics.data.gov.uk/id/local-authority/12UE,Huntingdonshire District Council,21/12/2016,200634,9053345084,5,722.96,Royal Mail,CR027083,Electoral Registration,Postage,231
http://statistics.data.gov.uk/id/local-authority/12UE,Huntingdonshire District Council,21/12/2016,200632,9053391664,5,"1,288.26",Royal Mail,CR027083,Electoral Registration,Postage,231
http://statistics.data.gov.uk/id/local-authority/12UE,Huntingdonshire District Council,21/12/2016,200633,9053392279,5,"1,150.34",Royal Mail,CR027083,Electoral Registration,Postage,231
http://statistics.data.gov.uk/id/local-authority/12UE,Huntingdonshire District Council,01/12/2016,199267,IN16PS16006273,5,209.69,Royal Mail,CR027083,Electoral Registration,Postage,231
http://statistics.data.gov.uk/id/local-authority/12UE,Huntingdonshire District Council,05/12/2016,198009,CONTRA IN16PS16,5,-256.02,Whistl Uk Ltd,CR479965,Electoral Registration,Postage,231
http://statistics.data.gov.uk/id/local-authority/12UE,Huntingdonshire District Council,05/12/2016,198005,CREDIT REF,5,-417.7,Whistl Uk Ltd,CR479965,Electoral Registration,Postage,231
http://statistics.data.gov.uk/id/local-authority/12UE,Huntingdonshire District Council,05/12/2016,197943,IN16PS16005036,5,890.1,Whistl Uk Ltd,CR479965,Electoral Registration,Postage,231
http://statistics.data.gov.uk/id/local-authority/12UE,Huntingdonshire District Council,05/12/2016,198754,IN16PS16005036.,5,-890.1,Whistl Uk Ltd,CR479965,Electoral Registration,Postage,231
http://statistics.data.gov.uk/id/local-authority/12UE,Huntingdonshire District Council,05/12/2016,197379,IN16PS16005445,5,481.6,Whistl Uk Ltd,CR479965,Electoral Registration,Postage,231
http://statistics.data.gov.uk/id/local-authority/12UE,Huntingdonshire District Council,05/12/2016,198753,IN16PS16005445,5,-481.6,Whistl Uk Ltd,CR479965,Electoral Registration,Postage,231
http://statistics.data.gov.uk/id/local-authority/12UE,Huntingdonshire District Council,05/12/2016,197380,IN16PS16005574,5,256.9,Whistl Uk Ltd,CR479965,Electoral Registration,Postage,231
http://statistics.data.gov.uk/id/local-authority/12UE,Huntingdonshire District Council,05/12/2016,198752,IN16PS16005574.,5,-256.9,Whistl Uk Ltd,CR479965,Electoral Registration,Postage,231
http://statistics.data.gov.uk/id/local-authority/12UE,Huntingdonshire District Council,15/12/2016,201127,IN16PS16006273,5,209.68,Whistl Uk Ltd,CR424061,Electoral Registration,Postage,231
http://statistics.data.gov.uk/id/local-authority/12UE,Huntingdonshire District Council,08/12/2016,199867,IN16PS16006419,5,517.97,Whistl Uk Ltd,CR424061,Electoral Registration,Postage,231
http://statistics.data.gov.uk/id/local-authority/12UE,Huntingdonshire District Council,15/12/2016,199868,IN16PS16006523,5,274.43,Whistl Uk Ltd,CR424061,Electoral Registration,Postage,231
http://statistics.data.gov.uk/id/local-authority/12UE,Huntingdonshire District Council,21/12/2016,200667,IN16PS16006688,5,527.13,Whistl Uk Ltd,CR424061,Electoral Registration,Postage,231
http://statistics.data.gov.uk/id/local-authority/12UE,Huntingdonshire District Council,28/12/2016,201103,IN16PS16006815,5,359.22,Whistl Uk Ltd,CR424061,Electoral Registration,Postage,231
http://statistics.data.gov.uk/id/local-authority/12UE,Huntingdonshire District Council,21/12/2016,200722,SI0220013,5,10.8,Klipspringer Ltd,CR405590,Food Safety,Postage,231
http://statistics.data.gov.uk/id/local-authority/12UE,Huntingdonshire District Council,05/12/2016,198009,CONTRA IN16PS16,5,-552.19,Whistl Uk Ltd,CR479965,Housing  Benefits Admin,Postage,231
http://statistics.data.gov.uk/id/local-authority/12UE,Huntingdonshire District Council,05/12/2016,197943,IN16PS16005036,5,212.18,Whistl Uk Ltd,CR479965,Housing  Benefits Admin,Postage,231
http://statistics.data.gov.uk/id/local-authority/12UE,Huntingdonshire District Council,05/12/2016,198754,IN16PS16005036.,5,-212.18,Whistl Uk Ltd,CR479965,Housing  Benefits Admin,Postage,231
http://statistics.data.gov.uk/id/local-authority/12UE,Huntingdonshire District Council,15/12/2016,200311,T26693,5,17.88,Mogo Uk,CR410378,Licences,Postage,231
http://statistics.data.gov.uk/id/local-authority/12UE,Huntingdonshire District Council,05/12/2016,197379,IN16PS16005445,5,847.92,Whistl Uk Ltd,CR479965,One Leisure Huntingdon,Postage,231
http://statistics.data.gov.uk/id/local-authority/12UE,Huntingdonshire District Council,05/12/2016,198753,IN16PS16005445,5,-847.92,Whistl Uk Ltd,CR479965,One Leisure Huntingdon,Postage,231
http://statistics.data.gov.uk/id/local-authority/12UE,Huntingdonshire District Council,05/12/2016,197943,IN16PS16005036,5,348.36,Whistl Uk Ltd,CR479965,One Leisure St Ives,Postage,231
http://statistics.data.gov.uk/id/local-authority/12UE,Huntingdonshire District Council,05/12/2016,198754,IN16PS16005036.,5,-348.36,Whistl Uk Ltd,CR479965,One Leisure St Ives,Postage,231
http://statistics.data.gov.uk/id/local-authority/12UE,Huntingdonshire District Council,01/12/2016,199519,3078,5,943.2,Sci Print Limited,CR416581,Elections,Printing (External),220
http://statistics.data.gov.uk/id/local-authority/12UE,Huntingdonshire District Council,21/12/2016,199998,16192,5,592.8,Victoirepress,CR404724,Elections,Printing (External),220
http://statistics.data.gov.uk/id/local-authority/12UE,Huntingdonshire District Council,08/12/2016,200022,16929,5,79.6,Bigprinting,CR416383,One Leisure Huntingdon,Printing (External),220
http://statistics.data.gov.uk/id/local-authority/12UE,Huntingdonshire District Council,08/12/2016,200022,16929,5,49.2,Bigprinting,CR416383,One Leisure Ramsey,Printing (External),220
http://statistics.data.gov.uk/id/local-authority/12UE,Huntingdonshire District Council,08/12/2016,200022,16929,5,49.19,Bigprinting,CR416383,One Leisure Sawtry,Printing (External),220
http://statistics.data.gov.uk/id/local-authority/12UE,Huntingdonshire District Council,08/12/2016,200022,16929,5,79.61,Bigprinting,CR416383,One Leisure St Ives,Printing (External),220
http://statistics.data.gov.uk/id/local-authority/12UE,Huntingdonshire District Council,08/12/2016,200022,16929,5,79.6,Bigprinting,CR416383,One Leisure St Neots,Printing (External),220
http://statistics.data.gov.uk/id/local-authority/12UE,Huntingdonshire District Council,21/12/2016,201589,SIN0623181,5,250.42,Howsafe Ltd,CR000409,Domestic Refuse,Protective Clothing & Uniforms,163
http://statistics.data.gov.uk/id/local-authority/12UE,Huntingdonshire District Council,08/12/2016,199688,375445,5,417.96,Smi Group,CR423139,Domestic Refuse,Protective Clothing & Uniforms,163
http://statistics.data.gov.uk/id/local-authority/12UE,Huntingdonshire District Council,01/12/2016,199157,54176,5,592.35,Landmark Trading Ltd,CR411433,Grounds Maintenance,Protective Clothing & Uniforms,163
http://statistics.data.gov.uk/id/local-authority/12UE,Huntingdonshire District Council,08/12/2016,199687,376533,5,"1,244.90",Smi Group,CR423139,Grounds Maintenance,Protective Clothing & Uniforms,163
http://statistics.data.gov.uk/id/local-authority/12UE,Huntingdonshire District Council,21/12/2016,200219,378149,5,395.88,Smi Group,CR423139,Off Street Parking,Protective Clothing & Uniforms,163
http://statistics.data.gov.uk/id/local-authority/12UE,Huntingdonshire District Council,08/12/2016,199686,376730,5,"1,382.16",Smi Group,CR423139,Street Cleaning,Protective Clothing & Uniforms,163
http://statistics.data.gov.uk/id/local-authority/12UE,Huntingdonshire District Council,28/12/2016,201647,4430,5,"9,360.00",Ace Recruitment Uk,CR424122,Domestic Refuse,Recruitment Costs,120
http://statistics.data.gov.uk/id/local-authority/12UE,Huntingdonshire District Council,21/12/2016,200376,4248,5,"12,515.52",Egbert H Taylor And Co Ltd,CR004818,Recycling Equipment Capital,Recycling Bins,525
http://statistics.data.gov.uk/id/local-authority/12UE,Huntingdonshire District Council,21/12/2016,200375,4313,5,919.22,Egbert H Taylor And Co Ltd,CR004818,Recycling Equipment Capital,Recycling Bins,525
http://statistics.data.gov.uk/id/local-authority/12UE,Huntingdonshire District Council,21/12/2016,200824,SINV-102593,5,"3,196.87",Gelpack Excelsior Limited,CR002966,Domestic Refuse,Refuse Sacks,552
http://statistics.data.gov.uk/id/local-authority/12UE,Huntingdonshire District Council,01/12/2016,199229,7188083,5,641.76,Glasdon Uk Ltd,CR002827,Pathfinder House Site,Refuse Sacks,552
http://statistics.data.gov.uk/id/local-authority/12UE,Huntingdonshire District Council,15/12/2016,200826,SINV-102561,5,"3,806.40",Gelpack Excelsior Limited,CR002966,Recycling,Refuse Sacks,552
http://statistics.data.gov.uk/id/local-authority/12UE,Huntingdonshire District Council,21/12/2016,200824,SINV-102593,5,"4,567.68",Gelpack Excelsior Limited,CR002966,Recycling,Refuse Sacks,552
http://statistics.data.gov.uk/id/local-authority/12UE,Huntingdonshire District Council,21/12/2016,201716,REDACTED PERSONAL DATA,5,450,A & M Removals,CR478641,Homelessness Management,Removal/Storage,750
http://statistics.data.gov.uk/id/local-authority/12UE,Huntingdonshire District Council,01/12/2016,199927,INV37547,5,436.8,Shopsafe Ltd,CR411150,Bus Stations,Rent,410
http://statistics.data.gov.uk/id/local-authority/12UE,Huntingdonshire District Council,28/12/2016,200346,8922,5,"16,848.00",Solace In Business,CR416525,Chief Executive & Comt,Salary Gross Pay,P01
http://statistics.data.gov.uk/id/local-authority/12UE,Huntingdonshire District Council,21/12/2016,201173,10707562,5,"1,653.42",Cambridgeshire County Council,CR006678,Customer Service Centres,Service Charges,412
http://statistics.data.gov.uk/id/local-authority/12UE,Huntingdonshire District Council,28/12/2016,201179,4004,5,"2,685.83",White Commercial Surveyors Ltd,CR412242,Customer Service Centres,Service Charges,412
http://statistics.data.gov.uk/id/local-authority/12UE,Huntingdonshire District Council,21/12/2016,201745,2014289,5,369.54,Bcw Office Products Ltd,CR480889,Markets,Signs Erecting & Removal,361
http://statistics.data.gov.uk/id/local-authority/12UE,Huntingdonshire District Council,08/12/2016,200644,28489/5106,5,"3,058.56",J Breheny Civil Engineering Ltd,CR000314,Off Street Parking,Sitework,359
http://statistics.data.gov.uk/id/local-authority/12UE,Huntingdonshire District Council,01/12/2016,200255,JBC/28488/5106/,5,"1,908.00",J Breheny Civil Engineering Ltd,CR000314,Parks & Open Spaces,Sitework,359
http://statistics.data.gov.uk/id/local-authority/12UE,Huntingdonshire District Council,08/12/2016,200743,U001110,,"24,000.00",Technology One Ltd,CR424111,Financial Mgt System Replacmnt,Software,206
http://statistics.data.gov.uk/id/local-authority/12UE,Huntingdonshire District Council,08/12/2016,200832,91381626,5,"8,363.50",Northgatepublic Services Uk Ltd,CR028925,Housing  Benefits Admin,Software,206
http://statistics.data.gov.uk/id/local-authority/12UE,Huntingdonshire District Council,01/12/2016,199845,94528818,5,"1,074.00",Northgate Arinso,CR416738,Human Resources,Software,206
http://statistics.data.gov.uk/id/local-authority/12UE,Huntingdonshire District Council,08/12/2016,199847,94528959,5,"1,074.00",Northgate Arinso,CR416738,Human Resources,Software,206
http://statistics.data.gov.uk/id/local-authority/12UE,Huntingdonshire District Council,15/12/2016,200336,94529151,5,"2,148.00",Northgate Arinso,CR416738,Human Resources,Software,206
http://statistics.data.gov.uk/id/local-authority/12UE,Huntingdonshire District Council,21/12/2016,200229,94530079,5,744,Northgate Arinso,CR416738,Human Resources,Software,206
http://statistics.data.gov.uk/id/local-authority/12UE,Huntingdonshire District Council,21/12/2016,200331,94530259,5,"1,074.00",Northgate Arinso,CR416738,Human Resources,Software,206
http://statistics.data.gov.uk/id/local-authority/12UE,Huntingdonshire District Council,28/12/2016,201480,11687,5,"12,576.00",Callcredit Ltd,CR455548,Imd Shared Service,Software,206
http://statistics.data.gov.uk/id/local-authority/12UE,Huntingdonshire District Council,21/12/2016,200370,120876,5,"18,000.00",Cloudbuy Plc,CR480042,Imd Shared Service,Software,206
http://statistics.data.gov.uk/id/local-authority/12UE,Huntingdonshire District Council,01/12/2016,199304,1542278,5,"69,216.00",European Electronique Ltd,CR424036,Imd Shared Service,Software,206
http://statistics.data.gov.uk/id/local-authority/12UE,Huntingdonshire District Council,01/12/2016,199304,1542278,5,"321,912.00",European Electronique Ltd,CR424036,Imd Shared Service,Software,206
http://statistics.data.gov.uk/id/local-authority/12UE,Huntingdonshire District Council,08/12/2016,199282,HSMLI1600084,5,"1,221.24",Hornbill Service Management Limited,CR423491,Imd Shared Service,Software,206
http://statistics.data.gov.uk/id/local-authority/12UE,Huntingdonshire District Council,21/12/2016,200778,OP/I788270,5,336.1,Phoenix Software Ltd,CR031918,Imd Shared Service,Software,206
http://statistics.data.gov.uk/id/local-authority/12UE,Huntingdonshire District Council,21/12/2016,201727,BB-INS2017-59,5,"1,110.00",Socitm,CR403291,Imd Shared Service,Software,206
http://statistics.data.gov.uk/id/local-authority/12UE,Huntingdonshire District Council,08/12/2016,200751,IE161958,5,"14,448.75",Solarwinds Software Europe Ltd (Ireland),CR424062,Imd Shared Service,Software,206
http://statistics.data.gov.uk/id/local-authority/12UE,Huntingdonshire District Council,21/12/2016,200777,3104929,5,"1,128.00",Zoho Corporation Private Ltd,CR452714,Imd Shared Service,Software,206
http://statistics.data.gov.uk/id/local-authority/12UE,Huntingdonshire District Council,28/12/2016,200886,4001269,5,"1,253.50",Gladstone Mrm,CR405717,One Leisure Corporate Mgt,Software,206
http://statistics.data.gov.uk/id/local-authority/12UE,Huntingdonshire District Council,15/12/2016,200230,77809,5,660,Gladstone Mrm,CR405717,One Leisure Huntingdon,Software,206
http://statistics.data.gov.uk/id/local-authority/12UE,Huntingdonshire District Council,15/12/2016,200230,77809,5,660,Gladstone Mrm,CR405717,One Leisure Ramsey,Software,206
http://statistics.data.gov.uk/id/local-authority/12UE,Huntingdonshire District Council,15/12/2016,200230,77809,5,660,Gladstone Mrm,CR405717,One Leisure Sawtry,Software,206
http://statistics.data.gov.uk/id/local-authority/12UE,Huntingdonshire District Council,15/12/2016,200230,77809,5,660,Gladstone Mrm,CR405717,One Leisure St Ives,Software,206
http://statistics.data.gov.uk/id/local-authority/12UE,Huntingdonshire District Council,15/12/2016,200230,77809,5,660,Gladstone Mrm,CR405717,One Leisure St Neots,Software,206
http://statistics.data.gov.uk/id/local-authority/12UE,Huntingdonshire District Council,28/12/2016,201238,3094,5,"3,066.31",Sci Print Limited,CR416581,Elections,Stationery,225
http://statistics.data.gov.uk/id/local-authority/12UE,Huntingdonshire District Council,21/12/2016,199883,4251703,1,69.37,Espo,CR006566,One Leisure St Ives,Stationery,225
http://statistics.data.gov.uk/id/local-authority/12UE,Huntingdonshire District Council,28/12/2016,605869,3,5,305,Sue Kirk,CR415354,Countryside,Subcontractors,777
http://statistics.data.gov.uk/id/local-authority/12UE,Huntingdonshire District Council,21/12/2016,201351,13899,5,"2,940.00",Alpha Parking,CR422725,Off Street Parking,Subcontractors,777
http://statistics.data.gov.uk/id/local-authority/12UE,Huntingdonshire District Council,21/12/2016,200779,PE14/1212,5,250,Bugs,CR404182,Pest Control,Subcontractors,777
http://statistics.data.gov.uk/id/local-authority/12UE,Huntingdonshire District Council,15/12/2016,200762,1248817176,5,60,Orange Airtime,CR455799,Cctv Shared Service,Telephone &Mobile Phonecharges,240
http://statistics.data.gov.uk/id/local-authority/12UE,Huntingdonshire District Council,15/12/2016,200762,1248817176,5,12,Orange Airtime,CR455799,Central Services M Us,Telephone &Mobile Phonecharges,240
http://statistics.data.gov.uk/id/local-authority/12UE,Huntingdonshire District Council,28/12/2016,200834,1093382,5,"2,905.20",Dts Solutions (Uk) Ltd,CR001981,Domestic Refuse,Telephone &Mobile Phonecharges,240
http://statistics.data.gov.uk/id/local-authority/12UE,Huntingdonshire District Council,15/12/2016,200762,1248817176,5,98.53,Orange Airtime,CR455799,Environmental Management,Telephone &Mobile Phonecharges,240
http://statistics.data.gov.uk/id/local-authority/12UE,Huntingdonshire District Council,15/12/2016,200762,1248817176,5,"1,777.60",Orange Airtime,CR455799,Imd Shared Service,Telephone &Mobile Phonecharges,240
http://statistics.data.gov.uk/id/local-authority/12UE,Huntingdonshire District Council,01/12/2016,200037,422367,,"2,878.67",Storm Technologies,CR480909,Imd Shared Service,Telephone &Mobile Phonecharges,240
http://statistics.data.gov.uk/id/local-authority/12UE,Huntingdonshire District Council,01/12/2016,200036,1013898,,"-2,878.67",Storm Technologies,CR480909,Imd Shared Service,Telephone &Mobile Phonecharges,240
http://statistics.data.gov.uk/id/local-authority/12UE,Huntingdonshire District Council,08/12/2016,200750,7.43E+14,5,"1,558.45",Virgin Media Business,CR033120,Imd Shared Service,Telephone &Mobile Phonecharges,240
http://statistics.data.gov.uk/id/local-authority/12UE,Huntingdonshire District Council,28/12/2016,200747,7.43E+14,5,"1,447.03",Virgin Media Business,CR033120,Imd Shared Service,Telephone &Mobile Phonecharges,240
http://statistics.data.gov.uk/id/local-authority/12UE,Huntingdonshire District Council,28/12/2016,201093,258,5,980,The Cctv Training Academy,CR455987,Cctv Shared Service,Training,130
http://statistics.data.gov.uk/id/local-authority/12UE,Huntingdonshire District Council,01/12/2016,199115,2301,5,"1,004.40",Gilden Training,CR481057,Environmental Management,Training,130
http://statistics.data.gov.uk/id/local-authority/12UE,Huntingdonshire District Council,15/12/2016,200290,D6576,5,535.36,Dennis Eagle Ltd,CR000200,Fleet Management,Training,130
http://statistics.data.gov.uk/id/local-authority/12UE,Huntingdonshire District Council,08/12/2016,199481,1464,5,135,Brampton Valley Training & Assessments Ltd,CR424078,Human Resources,Training,130
http://statistics.data.gov.uk/id/local-authority/12UE,Huntingdonshire District Council,08/12/2016,199481,1464,5,522,Brampton Valley Training & Assessments Ltd,CR424078,Human Resources,Training,130
http://statistics.data.gov.uk/id/local-authority/12UE,Huntingdonshire District Council,08/12/2016,605239,BTS161761,6,"1,800.00",Breckland Council,CR416546,Human Resources,Training,130
http://statistics.data.gov.uk/id/local-authority/12UE,Huntingdonshire District Council,08/12/2016,200450,1021679,5,594,Cadline Ltd,CR422192,Human Resources,Training,130
http://statistics.data.gov.uk/id/local-authority/12UE,Huntingdonshire District Council,15/12/2016,201158,1021680,5,594,Cadline Ltd,CR422192,Human Resources,Training,130
http://statistics.data.gov.uk/id/local-authority/12UE,Huntingdonshire District Council,21/12/2016,201117,3122831,5,468,Cipfa Business Limited,CR480088,Human Resources,Training,130
http://statistics.data.gov.uk/id/local-authority/12UE,Huntingdonshire District Council,15/12/2016,199894,1.13E+08,5,"1,070.00",C-Way Driver Training,CR423428,Human Resources,Training,130
http://statistics.data.gov.uk/id/local-authority/12UE,Huntingdonshire District Council,28/12/2016,200813,1.31E+08,5,535,C-Way Driver Training,CR423428,Human Resources,Training,130
http://statistics.data.gov.uk/id/local-authority/12UE,Huntingdonshire District Council,15/12/2016,199893,131410414,5,295,C-Way Driver Training,CR423428,Human Resources,Training,130
http://statistics.data.gov.uk/id/local-authority/12UE,Huntingdonshire District Council,28/12/2016,200809,131410430,5,"1,070.00",C-Way Driver Training,CR423428,Human Resources,Training,130
http://statistics.data.gov.uk/id/local-authority/12UE,Huntingdonshire District Council,28/12/2016,201487,ENI-00304,5,354,Eevs Insight Ltd,CR422910,Human Resources,Training,130
http://statistics.data.gov.uk/id/local-authority/12UE,Huntingdonshire District Council,08/12/2016,200256,2303,5,921.6,Gilden Training,CR481057,Human Resources,Training,130
http://statistics.data.gov.uk/id/local-authority/12UE,Huntingdonshire District Council,28/12/2016,201131,2309,5,838.8,Gilden Training,CR481057,Human Resources,Training,130
http://statistics.data.gov.uk/id/local-authority/12UE,Huntingdonshire District Council,21/12/2016,201737,LD2487,5,312,Land Data,CR424139,Human Resources,Training,130
http://statistics.data.gov.uk/id/local-authority/12UE,Huntingdonshire District Council,21/12/2016,201735,LD2488,5,408,Land Data,CR424139,Human Resources,Training,130
http://statistics.data.gov.uk/id/local-authority/12UE,Huntingdonshire District Council,15/12/2016,200030,PC2016620,5,630,Insights Pm,CR424082,Imd Shared Service,Training,130
http://statistics.data.gov.uk/id/local-authority/12UE,Huntingdonshire District Council,15/12/2016,200403,1571590,5,"4,158.00",Oracle Corporation Uk Ltd,CR400893,Information Manager,Training,130
http://statistics.data.gov.uk/id/local-authority/12UE,Huntingdonshire District Council,15/12/2016,200614,535/2016,5,864,Frontline Consulting Associates,CR422858,Member Allowances & Support,Training,130
http://statistics.data.gov.uk/id/local-authority/12UE,Huntingdonshire District Council,28/12/2016,201951,Q029 5U,5,252,British Telecommunications Plc,CR027071,Cctv Shared Service,Transmission Lines Rental,767
http://statistics.data.gov.uk/id/local-authority/12UE,Huntingdonshire District Council,28/12/2016,201951,Q029 5U,5,4.8,British Telecommunications Plc,CR027071,Cctv Shared Service,Transmission Lines Rental,767
http://statistics.data.gov.uk/id/local-authority/12UE,Huntingdonshire District Council,28/12/2016,201180,242159-119,5,"2,160.00",Virgin Media,CR412057,Cctv Shared Service,Transmission Lines Rental,767
http://statistics.data.gov.uk/id/local-authority/12UE,Huntingdonshire District Council,08/12/2016,605243,9039,5,354.6,Steves Taxis & Private Hire,CR155956,Homelessness Management,Travel Expenses,636
http://statistics.data.gov.uk/id/local-authority/12UE,Huntingdonshire District Council,15/12/2016,199424,37003640-0,5,"2,484.00",The F A Bartlett Tree Expert Company,CR424055,Grounds Maintenance,Tree Maintenance,357
http://statistics.data.gov.uk/id/local-authority/12UE,Huntingdonshire District Council,28/12/2016,201495,96309,5,"3,516.01",Bandvulc Truck Tyres,CR406810,Domestic Refuse,Tyres,630
http://statistics.data.gov.uk/id/local-authority/12UE,Huntingdonshire District Council,01/12/2016,199470,13168,5,324,Ian'S Tyre & Exhaust Centre,CR405836,Grounds Maintenance,Tyres,630
http://statistics.data.gov.uk/id/local-authority/12UE,Huntingdonshire District Council,28/12/2016,201495,96309,5,946.67,Bandvulc Truck Tyres,CR406810,Recycling,Tyres,630
http://statistics.data.gov.uk/id/local-authority/12UE,Huntingdonshire District Council,15/12/2016,199896,13382,5,360,Ian'S Tyre & Exhaust Centre,CR405836,Street Cleaning,Tyres,630
http://statistics.data.gov.uk/id/local-authority/12UE,Huntingdonshire District Council,21/12/2016,201073,291912,5,"2,198.18",Dennis Eagle Ltd,CR000200,Domestic Refuse,Vehicle Accident Damage,623
http://statistics.data.gov.uk/id/local-authority/12UE,Huntingdonshire District Council,21/12/2016,200772,96334778,5,414.47,Terberg Matec Uk Ltd,CR402183,Domestic Refuse,Vehicle Accident Damage,623
http://statistics.data.gov.uk/id/local-authority/12UE,Huntingdonshire District Council,21/12/2016,200773,96334817,5,386.89,Terberg Matec Uk Ltd,CR402183,Domestic Refuse,Vehicle Accident Damage,623
http://statistics.data.gov.uk/id/local-authority/12UE,Huntingdonshire District Council,15/12/2016,199955,96334504,5,550.45,Terberg Matec Uk Ltd,CR402183,Recycling,Vehicle Accident Damage,623
http://statistics.data.gov.uk/id/local-authority/12UE,Huntingdonshire District Council,21/12/2016,201550,100739,5,276,Huntingdon Plant Hire,CR000425,Domestic Refuse,Vehicle Cleaning,620
http://statistics.data.gov.uk/id/local-authority/12UE,Huntingdonshire District Council,21/12/2016,201551,100856,5,276,Huntingdon Plant Hire,CR000425,Domestic Refuse,Vehicle Cleaning,620
http://statistics.data.gov.uk/id/local-authority/12UE,Huntingdonshire District Council,01/12/2016,199913,1611/87962,5,408,Gullivers Truck Hire Ltd,CR477663,Domestic Refuse,Vehicle Hire,607
http://statistics.data.gov.uk/id/local-authority/12UE,Huntingdonshire District Council,01/12/2016,199914,1611/87963,5,876,Gullivers Truck Hire Ltd,CR477663,Domestic Refuse,Vehicle Hire,607
http://statistics.data.gov.uk/id/local-authority/12UE,Huntingdonshire District Council,08/12/2016,199618,1611/90589,5,408,Gullivers Truck Hire Ltd,CR477663,Domestic Refuse,Vehicle Hire,607
http://statistics.data.gov.uk/id/local-authority/12UE,Huntingdonshire District Council,08/12/2016,199620,1611/90590,5,876,Gullivers Truck Hire Ltd,CR477663,Domestic Refuse,Vehicle Hire,607
http://statistics.data.gov.uk/id/local-authority/12UE,Huntingdonshire District Council,21/12/2016,200258,1611/93541,5,408,Gullivers Truck Hire Ltd,CR477663,Domestic Refuse,Vehicle Hire,607
http://statistics.data.gov.uk/id/local-authority/12UE,Huntingdonshire District Council,21/12/2016,200259,1611/93542,5,876,Gullivers Truck Hire Ltd,CR477663,Domestic Refuse,Vehicle Hire,607
http://statistics.data.gov.uk/id/local-authority/12UE,Huntingdonshire District Council,21/12/2016,200802,1611/95284,5,408,Gullivers Truck Hire Ltd,CR477663,Domestic Refuse,Vehicle Hire,607
http://statistics.data.gov.uk/id/local-authority/12UE,Huntingdonshire District Council,21/12/2016,200804,1611/95285,5,876,Gullivers Truck Hire Ltd,CR477663,Domestic Refuse,Vehicle Hire,607
http://statistics.data.gov.uk/id/local-authority/12UE,Huntingdonshire District Council,28/12/2016,201133,1612/00475,5,408,Gullivers Truck Hire Ltd,CR477663,Domestic Refuse,Vehicle Hire,607
http://statistics.data.gov.uk/id/local-authority/12UE,Huntingdonshire District Council,28/12/2016,201132,1612/00476,5,876,Gullivers Truck Hire Ltd,CR477663,Domestic Refuse,Vehicle Hire,607
http://statistics.data.gov.uk/id/local-authority/12UE,Huntingdonshire District Council,01/12/2016,200435,10750731,5,"1,776.30",Shb Hire Ltd,CR416566,Domestic Refuse,Vehicle Hire,607
http://statistics.data.gov.uk/id/local-authority/12UE,Huntingdonshire District Council,28/12/2016,200796,10759904,5,"1,719.00",Shb Hire Ltd,CR416566,Domestic Refuse,Vehicle Hire,607
http://statistics.data.gov.uk/id/local-authority/12UE,Huntingdonshire District Council,01/12/2016,199153,1648667,5,"1,356.32",Days Contract Hire,CR417030,Grounds Maintenance,Vehicle Hire,607
http://statistics.data.gov.uk/id/local-authority/12UE,Huntingdonshire District Council,21/12/2016,200368,1652554,5,756,Days Contract Hire,CR417030,Grounds Maintenance,Vehicle Hire,607
http://statistics.data.gov.uk/id/local-authority/12UE,Huntingdonshire District Council,28/12/2016,200766,1654048,5,424,Days Contract Hire,CR417030,Grounds Maintenance,Vehicle Hire,607
http://statistics.data.gov.uk/id/local-authority/12UE,Huntingdonshire District Council,01/12/2016,200222,10750732,5,864.9,Shb Hire Ltd,CR416566,Grounds Maintenance,Vehicle Hire,607
http://statistics.data.gov.uk/id/local-authority/12UE,Huntingdonshire District Council,28/12/2016,200797,10759905,5,837,Shb Hire Ltd,CR416566,Grounds Maintenance,Vehicle Hire,607
http://statistics.data.gov.uk/id/local-authority/12UE,Huntingdonshire District Council,28/12/2016,200801,10759906,5,771.41,Shb Hire Ltd,CR416566,Grounds Maintenance,Vehicle Hire,607
http://statistics.data.gov.uk/id/local-authority/12UE,Huntingdonshire District Council,28/12/2016,200805,10759907,5,897,Shb Hire Ltd,CR416566,Grounds Maintenance,Vehicle Hire,607
http://statistics.data.gov.uk/id/local-authority/12UE,Huntingdonshire District Council,28/12/2016,200664,4411,5,"2,630.00",Adams Autos,CR422066,Licences,Vehicle Inspection,618
http://statistics.data.gov.uk/id/local-authority/12UE,Huntingdonshire District Council,08/12/2016,200265,28423,5,270,Coolair Logan Ltd,CR410942,Domestic Refuse,Vehicle Maintenance External,619
http://statistics.data.gov.uk/id/local-authority/12UE,Huntingdonshire District Council,08/12/2016,200266,28424,5,270,Coolair Logan Ltd,CR410942,Domestic Refuse,Vehicle Maintenance External,619
http://statistics.data.gov.uk/id/local-authority/12UE,Huntingdonshire District Council,08/12/2016,200267,28425,5,270,Coolair Logan Ltd,CR410942,Domestic Refuse,Vehicle Maintenance External,619
http://statistics.data.gov.uk/id/local-authority/12UE,Huntingdonshire District Council,08/12/2016,200270,28428,5,270,Coolair Logan Ltd,CR410942,Domestic Refuse,Vehicle Maintenance External,619
http://statistics.data.gov.uk/id/local-authority/12UE,Huntingdonshire District Council,15/12/2016,200283,28439,5,270,Coolair Logan Ltd,CR410942,Domestic Refuse,Vehicle Maintenance External,619
http://statistics.data.gov.uk/id/local-authority/12UE,Huntingdonshire District Council,15/12/2016,200281,28441,5,270,Coolair Logan Ltd,CR410942,Domestic Refuse,Vehicle Maintenance External,619
http://statistics.data.gov.uk/id/local-authority/12UE,Huntingdonshire District Council,15/12/2016,200280,28442,5,270,Coolair Logan Ltd,CR410942,Domestic Refuse,Vehicle Maintenance External,619
http://statistics.data.gov.uk/id/local-authority/12UE,Huntingdonshire District Council,15/12/2016,200278,28444,5,270,Coolair Logan Ltd,CR410942,Domestic Refuse,Vehicle Maintenance External,619
http://statistics.data.gov.uk/id/local-authority/12UE,Huntingdonshire District Council,15/12/2016,200285,28445,5,270,Coolair Logan Ltd,CR410942,Domestic Refuse,Vehicle Maintenance External,619
http://statistics.data.gov.uk/id/local-authority/12UE,Huntingdonshire District Council,15/12/2016,200284,28447,5,270,Coolair Logan Ltd,CR410942,Domestic Refuse,Vehicle Maintenance External,619
http://statistics.data.gov.uk/id/local-authority/12UE,Huntingdonshire District Council,15/12/2016,200286,28448,5,270,Coolair Logan Ltd,CR410942,Domestic Refuse,Vehicle Maintenance External,619
http://statistics.data.gov.uk/id/local-authority/12UE,Huntingdonshire District Council,15/12/2016,200271,28451,5,270,Coolair Logan Ltd,CR410942,Domestic Refuse,Vehicle Maintenance External,619
http://statistics.data.gov.uk/id/local-authority/12UE,Huntingdonshire District Council,15/12/2016,200276,28453,5,270,Coolair Logan Ltd,CR410942,Domestic Refuse,Vehicle Maintenance External,619
http://statistics.data.gov.uk/id/local-authority/12UE,Huntingdonshire District Council,15/12/2016,200275,28454,5,270,Coolair Logan Ltd,CR410942,Domestic Refuse,Vehicle Maintenance External,619
http://statistics.data.gov.uk/id/local-authority/12UE,Huntingdonshire District Council,15/12/2016,200273,28456,5,270,Coolair Logan Ltd,CR410942,Domestic Refuse,Vehicle Maintenance External,619
http://statistics.data.gov.uk/id/local-authority/12UE,Huntingdonshire District Council,15/12/2016,200272,28458,5,270,Coolair Logan Ltd,CR410942,Domestic Refuse,Vehicle Maintenance External,619
http://statistics.data.gov.uk/id/local-authority/12UE,Huntingdonshire District Council,15/12/2016,199820,85392,5,385.2,Frank Ratcliffe & Son,CR007546,Domestic Refuse,Vehicle Maintenance External,619
http://statistics.data.gov.uk/id/local-authority/12UE,Huntingdonshire District Council,15/12/2016,199819,85397,5,510.9,Frank Ratcliffe & Son,CR007546,Domestic Refuse,Vehicle Maintenance External,619
http://statistics.data.gov.uk/id/local-authority/12UE,Huntingdonshire District Council,08/12/2016,200268,28426,5,270,Coolair Logan Ltd,CR410942,Recycling,Vehicle Maintenance External,619
http://statistics.data.gov.uk/id/local-authority/12UE,Huntingdonshire District Council,08/12/2016,200269,28427,5,270,Coolair Logan Ltd,CR410942,Recycling,Vehicle Maintenance External,619
http://statistics.data.gov.uk/id/local-authority/12UE,Huntingdonshire District Council,15/12/2016,200282,28440,5,270,Coolair Logan Ltd,CR410942,Recycling,Vehicle Maintenance External,619
http://statistics.data.gov.uk/id/local-authority/12UE,Huntingdonshire District Council,15/12/2016,200279,28443,5,270,Coolair Logan Ltd,CR410942,Recycling,Vehicle Maintenance External,619
http://statistics.data.gov.uk/id/local-authority/12UE,Huntingdonshire District Council,15/12/2016,200287,28450,5,270,Coolair Logan Ltd,CR410942,Recycling,Vehicle Maintenance External,619
http://statistics.data.gov.uk/id/local-authority/12UE,Huntingdonshire District Council,15/12/2016,200277,28452,5,270,Coolair Logan Ltd,CR410942,Recycling,Vehicle Maintenance External,619
http://statistics.data.gov.uk/id/local-authority/12UE,Huntingdonshire District Council,15/12/2016,200274,28455,5,270,Coolair Logan Ltd,CR410942,Street Cleaning,Vehicle Maintenance External,619
http://statistics.data.gov.uk/id/local-authority/12UE,Huntingdonshire District Council,01/12/2016,199476,103512,5,294,Barton Petroleum,CR409205,Domestic Refuse,Vehicle Oil & Lubricants,626
http://statistics.data.gov.uk/id/local-authority/12UE,Huntingdonshire District Council,01/12/2016,199476,103512,5,126,Barton Petroleum,CR409205,Recycling,Vehicle Oil & Lubricants,626
http://statistics.data.gov.uk/id/local-authority/12UE,Huntingdonshire District Council,01/12/2016,199068,269758I,5,364.5,A C Commercials,CR000141,Domestic Refuse,Vehicle Parts & Fittings,625
http://statistics.data.gov.uk/id/local-authority/12UE,Huntingdonshire District Council,08/12/2016,199903,269916I,5,197.06,A C Commercials,CR000141,Domestic Refuse,Vehicle Parts & Fittings,625
http://statistics.data.gov.uk/id/local-authority/12UE,Huntingdonshire District Council,15/12/2016,200264,6589,5,"1,584.00",D & H Sign & Display Services,CR030353,Domestic Refuse,Vehicle Parts & Fittings,625
http://statistics.data.gov.uk/id/local-authority/12UE,Huntingdonshire District Council,21/12/2016,201549,4/26647,5,352.8,D H M Truck & Tachograph Centr,CR032254,Domestic Refuse,Vehicle Parts & Fittings,625
http://statistics.data.gov.uk/id/local-authority/12UE,Huntingdonshire District Council,01/12/2016,200323,285704,5,"1,316.78",Dennis Eagle Ltd,CR000200,Domestic Refuse,Vehicle Parts & Fittings,625
http://statistics.data.gov.uk/id/local-authority/12UE,Huntingdonshire District Council,15/12/2016,200305,292295,5,577.98,Dennis Eagle Ltd,CR000200,Domestic Refuse,Vehicle Parts & Fittings,625
http://statistics.data.gov.uk/id/local-authority/12UE,Huntingdonshire District Council,01/12/2016,200319,DE10966280,5,700.86,Dennis Eagle Ltd,CR000200,Domestic Refuse,Vehicle Parts & Fittings,625
http://statistics.data.gov.uk/id/local-authority/12UE,Huntingdonshire District Council,01/12/2016,200316,DE10967786,5,973.97,Dennis Eagle Ltd,CR000200,Domestic Refuse,Vehicle Parts & Fittings,625
http://statistics.data.gov.uk/id/local-authority/12UE,Huntingdonshire District Council,08/12/2016,200295,DE10995635,5,"1,510.00",Dennis Eagle Ltd,CR000200,Domestic Refuse,Vehicle Parts & Fittings,625
http://statistics.data.gov.uk/id/local-authority/12UE,Huntingdonshire District Council,08/12/2016,200302,DE10995636,5,600,Dennis Eagle Ltd,CR000200,Domestic Refuse,Vehicle Parts & Fittings,625
http://statistics.data.gov.uk/id/local-authority/12UE,Huntingdonshire District Council,08/12/2016,200299,DE10996305,5,"4,280.64",Dennis Eagle Ltd,CR000200,Domestic Refuse,Vehicle Parts & Fittings,625
http://statistics.data.gov.uk/id/local-authority/12UE,Huntingdonshire District Council,15/12/2016,200291,DE10997024,5,984.05,Dennis Eagle Ltd,CR000200,Domestic Refuse,Vehicle Parts & Fittings,625
http://statistics.data.gov.uk/id/local-authority/12UE,Huntingdonshire District Council,15/12/2016,200296,DE10997025,5,400.6,Dennis Eagle Ltd,CR000200,Domestic Refuse,Vehicle Parts & Fittings,625
http://statistics.data.gov.uk/id/local-authority/12UE,Huntingdonshire District Council,15/12/2016,200297,DE10997354,5,677.33,Dennis Eagle Ltd,CR000200,Domestic Refuse,Vehicle Parts & Fittings,625
http://statistics.data.gov.uk/id/local-authority/12UE,Huntingdonshire District Council,15/12/2016,200298,DE10997683,5,300.34,Dennis Eagle Ltd,CR000200,Domestic Refuse,Vehicle Parts & Fittings,625
http://statistics.data.gov.uk/id/local-authority/12UE,Huntingdonshire District Council,21/12/2016,201568,DE10998831,5,334.33,Dennis Eagle Ltd,CR000200,Domestic Refuse,Vehicle Parts & Fittings,625
http://statistics.data.gov.uk/id/local-authority/12UE,Huntingdonshire District Council,21/12/2016,201569,DE10998832,5,464.09,Dennis Eagle Ltd,CR000200,Domestic Refuse,Vehicle Parts & Fittings,625
http://statistics.data.gov.uk/id/local-authority/12UE,Huntingdonshire District Council,28/12/2016,200842,DE11001721,5,331.66,Dennis Eagle Ltd,CR000200,Domestic Refuse,Vehicle Parts & Fittings,625
http://statistics.data.gov.uk/id/local-authority/12UE,Huntingdonshire District Council,28/12/2016,201465,42022,5,"1,543.41",E Rand And Sons,CR405746,Domestic Refuse,Vehicle Parts & Fittings,625
http://statistics.data.gov.uk/id/local-authority/12UE,Huntingdonshire District Council,21/12/2016,200385,85476,5,687.9,Frank Ratcliffe & Son,CR007546,Domestic Refuse,Vehicle Parts & Fittings,625
http://statistics.data.gov.uk/id/local-authority/12UE,Huntingdonshire District Council,28/12/2016,200895,53025,5,946.72,Garwood Europe Ltd,CR415210,Domestic Refuse,Vehicle Parts & Fittings,625
http://statistics.data.gov.uk/id/local-authority/12UE,Huntingdonshire District Council,08/12/2016,199948,96334183,5,635.04,Terberg Matec Uk Ltd,CR402183,Domestic Refuse,Vehicle Parts & Fittings,625
http://statistics.data.gov.uk/id/local-authority/12UE,Huntingdonshire District Council,15/12/2016,199950,96334543,5,898.25,Terberg Matec Uk Ltd,CR402183,Domestic Refuse,Vehicle Parts & Fittings,625
http://statistics.data.gov.uk/id/local-authority/12UE,Huntingdonshire District Council,28/12/2016,200774,96334988,5,432.36,Terberg Matec Uk Ltd,CR402183,Domestic Refuse,Vehicle Parts & Fittings,625
http://statistics.data.gov.uk/id/local-authority/12UE,Huntingdonshire District Council,21/12/2016,201549,4/26647,5,91.56,D H M Truck & Tachograph Centr,CR032254,Fleet Management,Vehicle Parts & Fittings,625
http://statistics.data.gov.uk/id/local-authority/12UE,Huntingdonshire District Council,21/12/2016,200848,188168,5,"2,353.68",Arthur Ibbett Ltd,CR000430,Grounds Maintenance,Vehicle Parts & Fittings,625
http://statistics.data.gov.uk/id/local-authority/12UE,Huntingdonshire District Council,28/12/2016,200849,188583,5,700.09,Arthur Ibbett Ltd,CR000430,Grounds Maintenance,Vehicle Parts & Fittings,625
http://statistics.data.gov.uk/id/local-authority/12UE,Huntingdonshire District Council,28/12/2016,200885,58391207,5,490.33,Marshall Motor Group Ltd,CR009641,Grounds Maintenance,Vehicle Parts & Fittings,625
http://statistics.data.gov.uk/id/local-authority/12UE,Huntingdonshire District Council,01/12/2016,199154,8037287,5,762.95,Reesink Turfcare Uk Ltd,CR098282,Grounds Maintenance,Vehicle Parts & Fittings,625
http://statistics.data.gov.uk/id/local-authority/12UE,Huntingdonshire District Council,01/12/2016,199419,8037353,5,273.18,Reesink Turfcare Uk Ltd,CR098282,Grounds Maintenance,Vehicle Parts & Fittings,625
http://statistics.data.gov.uk/id/local-authority/12UE,Huntingdonshire District Council,01/12/2016,199421,8037355,5,310.9,Reesink Turfcare Uk Ltd,CR098282,Grounds Maintenance,Vehicle Parts & Fittings,625
http://statistics.data.gov.uk/id/local-authority/12UE,Huntingdonshire District Council,08/12/2016,199601,8037679,5,"5,028.08",Reesink Turfcare Uk Ltd,CR098282,Grounds Maintenance,Vehicle Parts & Fittings,625
http://statistics.data.gov.uk/id/local-authority/12UE,Huntingdonshire District Council,08/12/2016,199903,269916I,5,84.46,A C Commercials,CR000141,Recycling,Vehicle Parts & Fittings,625
http://statistics.data.gov.uk/id/local-authority/12UE,Huntingdonshire District Council,21/12/2016,201549,4/26647,5,235.2,D H M Truck & Tachograph Centr,CR032254,Recycling,Vehicle Parts & Fittings,625
http://statistics.data.gov.uk/id/local-authority/12UE,Huntingdonshire District Council,28/12/2016,201141,DE1000308,5,655.8,Dennis Eagle Ltd,CR000200,Recycling,Vehicle Parts & Fittings,625
http://statistics.data.gov.uk/id/local-authority/12UE,Huntingdonshire District Council,15/12/2016,200294,DE10997026,5,280.9,Dennis Eagle Ltd,CR000200,Recycling,Vehicle Parts & Fittings,625
http://statistics.data.gov.uk/id/local-authority/12UE,Huntingdonshire District Council,21/12/2016,200841,DE10999886,5,588.55,Dennis Eagle Ltd,CR000200,Recycling,Vehicle Parts & Fittings,625
http://statistics.data.gov.uk/id/local-authority/12UE,Huntingdonshire District Council,21/12/2016,200839,DE10999888,5,319.46,Dennis Eagle Ltd,CR000200,Recycling,Vehicle Parts & Fittings,625
http://statistics.data.gov.uk/id/local-authority/12UE,Huntingdonshire District Council,28/12/2016,200366,DE11000307,5,387.3,Dennis Eagle Ltd,CR000200,Recycling,Vehicle Parts & Fittings,625
http://statistics.data.gov.uk/id/local-authority/12UE,Huntingdonshire District Council,21/12/2016,201294,85517,5,385.2,Frank Ratcliffe & Son,CR007546,Recycling,Vehicle Parts & Fittings,625
http://statistics.data.gov.uk/id/local-authority/12UE,Huntingdonshire District Council,28/12/2016,201293,85564,5,385.2,Frank Ratcliffe & Son,CR007546,Recycling,Vehicle Parts & Fittings,625
http://statistics.data.gov.uk/id/local-authority/12UE,Huntingdonshire District Council,08/12/2016,199948,96334183,5,272.16,Terberg Matec Uk Ltd,CR402183,Recycling,Vehicle Parts & Fittings,625
http://statistics.data.gov.uk/id/local-authority/12UE,Huntingdonshire District Council,28/12/2016,200774,96334988,5,185.3,Terberg Matec Uk Ltd,CR402183,Recycling,Vehicle Parts & Fittings,625
http://statistics.data.gov.uk/id/local-authority/12UE,Huntingdonshire District Council,15/12/2016,200304,60222875,5,673.44,Aebi Schmidt,CR025706,Street Cleaning,Vehicle Parts & Fittings,625
http://statistics.data.gov.uk/id/local-authority/12UE,Huntingdonshire District Council,08/12/2016,199911,80050349,5,271.43,Chassis-Cab Ltd,CR422248,Street Cleaning,Vehicle Parts & Fittings,625
http://statistics.data.gov.uk/id/local-authority/12UE,Huntingdonshire District Council,28/12/2016,200901,65252646,5,564,Johnston Engineering Ltd,CR029831,Street Cleaning,Vehicle Parts & Fittings,625
http://statistics.data.gov.uk/id/local-authority/12UE,Huntingdonshire District Council,21/12/2016,200367,D96676,5,"2,166.00",Dennis Eagle Ltd,CR000200,Vehicles & Plant Capital,Vehicles Purchased,600
http://statistics.data.gov.uk/id/local-authority/12UE,Huntingdonshire District Council,21/12/2016,199961,10336253,5,368.6,Lucozade Ribena Suntory Ltd,CR422660,One Leisure Sawtry,Vending Materials,560
http://statistics.data.gov.uk/id/local-authority/12UE,Huntingdonshire District Council,01/12/2016,198999,0010324558/9015,5,295.85,Lucozade Ribena Suntory Ltd,CR422660,One Leisure St Ives,Vending Materials,560
http://statistics.data.gov.uk/id/local-authority/12UE,Huntingdonshire District Council,28/12/2016,200623,0010341389/9016,5,268.98,Lucozade Ribena Suntory Ltd,CR422660,One Leisure St Ives,Vending Materials,560
http://statistics.data.gov.uk/id/local-authority/12UE,Huntingdonshire District Council,21/12/2016,200808,75113,5,352.92,Snackline Direct Ltd,CR478090,One Leisure St Neots,Vending Materials,560
http://statistics.data.gov.uk/id/local-authority/12UE,Huntingdonshire District Council,21/12/2016,200694,SBO1051176,5,967.8,Veolia Es Uk Ltd,CR478889,One Leisure St Ives,Waste Disposal,763
http://statistics.data.gov.uk/id/local-authority/12UE,Huntingdonshire District Council,21/12/2016,200696,SBO1051178,5,320.35,Veolia Es Uk Ltd,CR478889,One Leisure St Neots,Waste Disposal,763
http://statistics.data.gov.uk/id/local-authority/12UE,Huntingdonshire District Council,21/12/2016,200898,10707379,5,"3,909.10",Cambridgeshire County Council,CR006678,Trade Refuse,Waste Disposal,763
http://statistics.data.gov.uk/id/local-authority/12UE,Huntingdonshire District Council,28/12/2016,201071,F10184,5,52.45,Integrated Water Services Ltd,CR452140,E F H And Depots,Water & Sewerage,432
http://statistics.data.gov.uk/id/local-authority/12UE,Huntingdonshire District Council,28/12/2016,201072,F8538,5,52.45,Integrated Water Services Ltd,CR452140,E F H And Depots,Water & Sewerage,432
http://statistics.data.gov.uk/id/local-authority/12UE,Huntingdonshire District Council,01/12/2016,200024,893,6,"1,898.65",Abbey College,CR128984,One Leisure Ramsey,Water & Sewerage,432
http://statistics.data.gov.uk/id/local-authority/12UE,Huntingdonshire District Council,01/12/2016,198992,STI000468,5,"1,845.00",St Ivo School,CR408986,One Leisure St Ives,Water & Sewerage,432
http://statistics.data.gov.uk/id/local-authority/12UE,Huntingdonshire District Council,01/12/2016,200434,123913345,5,788.67,Anglian Water,CR000071,One Leisure St Neots,Water & Sewerage,432
http://statistics.data.gov.uk/id/local-authority/12UE,Huntingdonshire District Council,21/12/2016,201636,123913345,5,739.47,Anglian Water,CR000071,One Leisure St Neots,Water & Sewerage,432
http://statistics.data.gov.uk/id/local-authority/12UE,Huntingdonshire District Council,28/12/2016,201071,F10184,5,162.05,Integrated Water Services Ltd,CR452140,Parks & Open Spaces,Water & Sewerage,432
http://statistics.data.gov.uk/id/local-authority/12UE,Huntingdonshire District Council,28/12/2016,201072,F8538,5,162.05,Integrated Water Services Ltd,CR452140,Parks & Open Spaces,Water & Sewerage,432
http://statistics.data.gov.uk/id/local-authority/12UE,Huntingdonshire District Council,28/12/2016,201071,F10184,5,73.5,Integrated Water Services Ltd,CR452140,Pathfinder House Site,Water & Sewerage,432
http://statistics.data.gov.uk/id/local-authority/12UE,Huntingdonshire District Council,28/12/2016,201072,F8538,5,73.5,Integrated Water Services Ltd,CR452140,Pathfinder House Site,Water & Sewerage,432
